{"text_format":"1","workbook":"xlsx","n_sheets":5,"sheets":["Notes","Summary","OP STP","Orgs","BS"],"not_rendered":{"charts":0,"images":0,"macros":1,"external_links":1,"defined_names":4,"comments":0,"pivot_tables":0},"unopened":[],"bounds":{"document_bytes":16777216,"sheet_cells":100000,"rows_first":2000,"rows_last":500,"rows_between":2000,"halvings":0,"cell_chars":16384,"cell_head_chars":4096},"cells_cut":0,"cells_raw":0,"read":"whole","date_system":"1900"}

{"sheet":"Notes","index":0,"n_rows":2,"n_cols":10,"rows_kept":2,"cut":false,"hidden":false,"merged":[]}
[]
["Outpatients Friends and Family Test (FFT) Data - February 2022",null,null,null,null,null,null,null,null,"  Show data for:"]

{"sheet":"Summary","index":1,"n_rows":10,"n_cols":10,"rows_kept":10,"cut":false,"hidden":false,"merged":[[5,1,6,1],[5,4,5,5],[5,6,5,7],[5,8,5,9]]}
[]
[]
[]
[]
[]
[null,"FFT","Number of organisations submitting","Total responses to date","Responses",null,"Percentage Positive",null,"Percentage Negative"]
[null,null,"2022-02-01","2022-02-01","2022-02-01","2022-01-27","2022-02-01","2022-01-27","2022-02-01","2022-01-27"]
[null,"Total",226,23416372,317405,320228,0.93185362549424233,0.93270419825874062,3.2775161071816765E-2,3.1752376431792351E-2]
[null,"NHS",141,22019452,304141,308813,0.93018698564152813,0.93156376188826251,3.3704761936075703E-2,3.2466249801659901E-2]
[null,"IS",91,1398490,13656,11613,0.96983011130638552,0.96409196590028412,1.127709431751611E-2,1.2313786274003272E-2]

{"sheet":"OP STP","index":2,"n_rows":55,"n_cols":12,"rows_kept":55,"cut":false,"hidden":false,"merged":[[7,5,8,5],[7,6,7,11],[4,1,5,1],[4,4,5,4],[7,0,8,0],[7,1,8,1],[7,2,8,2],[7,3,8,3],[7,4,8,4]]}
[]
[]
[]
[]
[]
[]
[]
["STP Code","STP Name","Total Responses","Total Eligible","Percentage Positive","Percentage Negative","Breakdown of Responses"]
[null,null,null,null,null,null,"Very Good","Good","Neither Good nor Poor","Poor","Very Poor","Don't Know"]
[null,"England (including Independent Sector Providers)",317405,4532489,0.93185362549424233,3.2775161071816765E-2,253546,42229,8398,4680,5723,2829]
[null,"England (excluding Independent Sector Providers)",303749,4352811,0.93014627208649248,3.3741674869711503E-2,242091,40440,8217,4598,5651,2752]
[null,"Selection (excluding suppressed data)",{"$f":"SUBTOTAL(9, C13:C56)","v":317405},{"$f":"SUBTOTAL(9, D13:D56)","v":4532489},{"$f":"IFERROR((G12+H12)/C12, \"-\")","v":0.93185362549424233},{"$f":"IFERROR((J12+K12)/C12, \"-\")","v":3.2775161071816765E-2},{"$f":"SUBTOTAL(9, G13:G56)","v":253546},42229,8398,4680,5723,2829]
["QE1","Healthier Lancashire and South Cumbria",6333,137355,0.92973314384967631,3.1896415600821099E-2,4997,891,202,118,84,41]
["QF7","South Yorkshire and Bassetlaw STP",7593,199734,0.92414065586724614,3.9641775319373108E-2,6109,908,217,148,153,58]
["QGH","Herefordshire and Worcestershire STP",4806,43154,0.92114024136496042,4.2863087806908035E-2,3766,661,161,96,110,12]
["QH8","Mid and South Essex STP",5477,27987,0.92660215446412264,3.4142778893554868E-2,4310,765,168,80,107,47]
["QHG","Bedfordshire, Luton and Milton Keynes STP",5222,46922,0.92531597089237838,2.738414400612792E-2,3866,966,220,80,63,27]
["QHL","Birmingham and Solihull STP",931,136829,0.96777658431793767,1.5037593984962405E-2,738,163,14,2,12,2]
["QHM","Cumbria and North East STP",5073,214648,0.9544648137196925,1.8923713778829097E-2,4077,765,122,54,42,13]
["QJ2","Joined Up Care Derbyshire STP",6076,73142,0.94042132982225146,2.9953917050691243E-2,4768,946,170,91,91,10]
["QJG","Suffolk and North East Essex STP",9404,60416,0.93736707783921736,2.5840068056146321E-2,7351,1464,267,132,111,79]
["QJK","Devon STP",595,94706,0.96974789915966386,1.3445378151260505E-2,514,63,10,4,4,0]
["QJM","Lincolnshire STP",3235,41027,0.92859350850077282,3.2457496136012363E-2,2520,484,92,56,49,34]
["QK1","Leicester, Leicestershire and Rutland STP",9767,63193,0.94379031432374316,2.9384662639500358E-2,8083,1135,234,121,166,28]
["QKK","Our Healthier South East London STP",13703,199333,0.91213602860687437,4.8456542362986209E-2,10030,2469,481,325,339,59]
["QKS","Kent and Medway STP",11978,112651,0.92068792786775755,4.0657872766739024E-2,9254,1774,398,230,257,65]
["QM7","Hertfordshire and West Essex STP",1678,75354,0.94457687723480332,2.3241954707985697E-2,1287,298,43,17,22,11]
["QMF","East London Health & Care Partnership (STP)",12336,176471,0.86421854734111547,7.109273670557717E-2,8519,2142,469,318,559,329]
["QMJ","North London Partners in Health & Care (STP)",22537,251852,0.92115188356924171,3.1281891999822516E-2,17676,3084,547,307,398,525]
["QMM","Norfolk and Waveney Health & Care Partnership (STP)",5820,78462,0.95704467353951894,2.1134020618556702E-2,5031,539,121,67,56,6]
["QNC","Staffordshire & Stoke on Trent STP",3894,48113,0.95403184386235229,1.9517205957883924E-2,3354,361,62,41,35,41]
["QNQ","Frimley Health & Care (STP)",2366,41313,0.93956043956043955,2.5359256128486898E-2,1793,430,77,31,29,6]
["QNX","Sussex Health and Care Partnership STP",3763,67923,0.95562051554610683,2.0196651607759766E-2,3216,380,68,24,52,23]
["QOC","Shropshire and Telford and Wrekin STP",2791,33462,0.9806520960229308,6.8075958437835904E-3,2496,241,31,13,6,4]
["QOP","Greater Manchester Health & Social Care Partnership",14383,225456,0.93040394910658419,3.5736633525690051E-2,11641,1741,373,227,287,114]
["QOQ","Humber, Coast and Vale STP",8392,125208,0.92385605338417542,3.6344137273593896E-2,6547,1206,270,144,161,64]
["QOX","Bath and North East Somerset, Swindon and Wiltshire STP",1166,66307,0.983704974271012,8.5763293310463125E-3,1077,70,4,5,5,5]
["QPM","Northamptonshire STP",3444,57502,0.92682926829268297,2.2067363530778164E-2,2535,657,150,38,38,26]
["QR1","Gloucestershire STP",4447,45709,0.9341128850910726,3.170676860805037E-2,3404,750,136,84,57,16]
["QRL","Hampshire and the Isle of Wight STP",6358,141140,0.94526580685750239,2.5951557093425604E-2,5240,770,157,68,97,26]
["QRV","North West London Health & Care Partnership (STP)",13516,210378,0.92172240307783371,3.1370227878070436E-2,10751,1707,346,187,237,288]
["QSL","Somerset STP",287,11194,0.99303135888501737,0,268,17,2,0,0,0]
["QT1","Nottingham and Nottinghamshire Health and Care STP",6013,73482,0.95443206386163315,2.2451355396640612E-2,5077,662,109,70,65,30]
["QT6","Cornwall and the Isles of Scilly Health & Social Care Partnership (STP)",1310,33945,0.95572519083969465,2.2900763358778626E-2,1109,143,20,15,15,8]
["QU9","Buckinghamshire, Oxfordshire and Berkshire West STP",11607,130367,0.93047299043680542,3.3169639010941672E-2,9392,1408,357,187,198,65]
["QUA","The Black Country and West Birmingham STP",8783,142034,0.90231128316065123,4.5087100079699419E-2,6537,1388,304,162,234,158]
["QUE","Cambridgeshire and Peterborough STP",9143,87748,0.95942250902329651,2.0234058842830582E-2,7845,927,154,76,109,32]
["QUY","Bristol, North Somerset and South Gloucestershire STP",5985,74468,0.93884711779448626,2.6733500417710943E-2,4902,717,151,80,80,55]
["QVV","Dorset STP",3826,13568,0.94171458442237321,1.9079979090433873E-2,3048,555,97,32,41,53]
["QWE","South West London Health & Care Partnership (STP)",11051,133591,0.92878472536422041,4.6692607003891051E-2,9016,1248,233,148,368,38]
["QWO","West Yorkshire and Harrogate Health & Care Partnership (STP)",7476,190745,0.94194756554307113,3.1433921883360083E-2,6186,856,150,107,128,49]
["QWU","Coventry and Warwickshire STP",4586,74094,0.92586131705189711,3.4234627126035762E-2,3604,642,104,67,90,79]
["QXU","Surrey Heartlands Health & Care Partnership (STP)",5999,79219,0.91565260876812804,4.9008168028004666E-2,4696,797,168,114,180,44]
["QYG","Cheshire and Merseyside STP",30599,212609,0.93829863721036633,3.0981404621066046E-2,25461,3250,758,432,516,182]
["IS1","Independent Sector Providers",13656,179678,0.96983011130638552,1.127709431751611E-2,11455,1789,181,82,72,77]

{"sheet":"Orgs","index":3,"n_rows":238,"n_cols":21,"rows_kept":238,"cut":false,"hidden":false,"merged":[[7,19,8,19],[7,20,8,20],[7,13,8,13],[7,14,8,14],[7,15,8,15],[7,16,8,16],[7,17,8,17],[7,18,8,18],[4,1,5,2],[6,13,6,20],[7,0,8,0],[7,1,8,1],[7,2,8,2],[7,3,8,3],[7,4,8,4],[7,5,8,5],[7,6,8,6],[7,7,7,12]]}
[]
[]
[]
[]
[null,null,null,null,null,null,null,"  "]
[null,null,null,null,null,null,null,"  "]
[null,null,null,null,null,null,null,null,null,null,null,null,null,"Response Mode"]
["STP Code","Org Code","Org Name","Total Responses","Total Eligible","Percentage Positive","Percentage Negative","Breakdown of Responses",null,null,null,null,null,"Mode SMS","Mode Electronic At Appointment","Mode Electronic After Appointment","Mode Paper At Appointment","Mode Paper After Appointment","Mode Telephone","Mode Online","Mode Other"]
[null,null,null,null,null,null,null,"Very Good","Good","Neither Good nor Poor","Poor","Very Poor","Don't Know"]
[null,null,"England (including Independent Sector Providers)",317405,4532489,0.93185362549424233,3.2775161071816765E-2,253546,42229,8398,4680,5723,2829,205937,5569,2115,31217,4909,30666,35104,{"$f":"SUM('[1]Collection Mode'!O:O)","v":1888}]
[null,null,"England (excluding Independent Sector Providers)",303749,4352811,0.93014627208649248,3.3741674869711503E-2,242091,40440,8217,4598,5651,2752,205466,4923,387,27804,4167,30666,28448,{"$f":"SUMIF('[1]Collection Mode'!$P:$P,\"<>IS1\",'[1]Collection Mode'!O:O)","v":1888}]
[null,null,"Selection (excluding suppressed data)",{"$f":"SUBTOTAL(9, D13:D10000)","v":317405},{"$f":"SUBTOTAL(9, E13:E10000)","v":4532489},{"$f":"IFERROR((H12+I12)/D12, \"-\")","v":0.93139994644066726},{"$f":"IFERROR((K12+L12)/D12, \"-\")","v":3.2756257777917804E-2},{"$f":"SUBTOTAL(9, H13:H10000)","v":253407},{"$f":"SUBTOTAL(9, I13:I10000)","v":42224},8396,4676,5721,2829,205937,5569,2115,31100,4909,30666,35069,{"$f":"SUBTOTAL(9, U13:U9998)","v":1888}]
["QE1","RXL","BLACKPOOL TEACHING HOSPITALS NHS FOUNDATION TRUST",831,30454,0.97593261131167264,1.3237063778580024E-2,736,75,8,9,2,1,0,0,0,692,0,0,139,0]
["QE1","RXR","EAST LANCASHIRE HOSPITALS NHS TRUST",1411,40919,0.92274982282069451,3.6853295535081501E-2,1108,194,41,33,19,16,1122,0,0,213,0,0,76,0]
["QE1","RXN","LANCASHIRE TEACHING HOSPITALS NHS FOUNDATION TRUST",2406,42505,0.91064006650041562,4.1147132169576058E-2,1773,418,102,53,46,14,1808,0,0,84,0,501,13,0]
["QE1","RTX","UNIVERSITY HOSPITALS OF MORECAMBE BAY NHS FOUNDATION TRUST",1685,23477,0.94005934718100892,2.3738872403560832E-2,1380,204,51,23,17,10,1333,0,0,0,0,351,1,0]
["QF7","RFF","BARNSLEY HOSPITAL NHS FOUNDATION TRUST",208,29727,0.90384615384615385,4.3269230769230768E-2,164,24,7,8,1,4,170,0,0,38,0,0,0,0]
["QF7","RP5","DONCASTER AND BASSETLAW TEACHING HOSPITALS NHS FOUNDATION TRUST",173,41287,0.98843930635838151,5.7803468208092483E-3,163,8,1,0,1,0,0,0,0,168,0,0,5,0]
["QF7","RCU","SHEFFIELD CHILDREN'S NHS FOUNDATION TRUST",1763,13538,0.88201928530913221,7.2603516732841752E-2,1343,212,61,56,72,19,0,0,0,14,0,1715,34,0]
["QF7","RHQ","SHEFFIELD TEACHING HOSPITALS NHS FOUNDATION TRUST",5164,93123,0.9337722695584818,3.117738187451588E-2,4181,641,146,83,78,35,4445,0,0,0,0,646,73,0]
["QF7","RFR","THE ROTHERHAM NHS FOUNDATION TRUST",285,22059,0.98596491228070171,7.0175438596491229E-3,258,23,2,1,1,0,0,0,0,281,0,0,4,0]
["QGH","RWP","WORCESTERSHIRE ACUTE HOSPITALS NHS TRUST",4806,28946,0.92114024136496042,4.2863087806908035E-2,3766,661,161,96,110,12,4806,0,0,0,0,0,0,0]
["QGH","RLQ","WYE VALLEY NHS TRUST",0,14208,"NA","NA",0,0,0,0,0,0,0,0,0,0,0,0,0,0]
["QH8","RAJ","MID AND SOUTH ESSEX NHS FOUNDATION TRUST",5477,27987,0.92660215446412264,3.4142778893554868E-2,4310,765,168,80,107,47,4095,0,0,0,0,1075,4,303]
["QHG","RC9","BEDFORDSHIRE HOSPITALS NHS FOUNDATION TRUST",572,29118,0.92132867132867136,2.972027972027972E-2,382,145,24,5,12,4,0,166,0,0,0,0,406,0]
["QHG","RD8","MILTON KEYNES UNIVERSITY HOSPITAL NHS FOUNDATION TRUST",4650,17804,0.9258064516129032,2.7096774193548386E-2,3484,821,196,75,51,23,4622,0,0,6,0,0,22,0]
["QHL","RQ3","BIRMINGHAM WOMEN'S AND CHILDREN'S NHS FOUNDATION TRUST",66,28072,0.9242424242424242,4.5454545454545456E-2,54,7,2,0,3,0,0,0,0,0,0,0,66,0]
["QHL","RRK","UNIVERSITY HOSPITALS BIRMINGHAM NHS FOUNDATION TRUST",865,108757,0.97109826589595372,1.2716763005780347E-2,684,156,12,2,9,2,0,0,0,0,865,0,0,0]
["QHM","RXP","COUNTY DURHAM AND DARLINGTON NHS FOUNDATION TRUST",1,30650,"*","*","*","*","*","*","*","*","*","*","*","*","*","*","*","*"]
["QHM","RR7","GATESHEAD HEALTH NHS FOUNDATION TRUST",542,12216,0.93357933579335795,3.3210332103321034E-2,429,77,14,7,11,4,540,0,0,2,0,0,0,0]
["QHM","RNN","NORTH CUMBRIA INTEGRATED CARE NHS FOUNDATION TRUST",188,400,0.99468085106382975,5.3191489361702126E-3,163,24,0,0,1,0,15,0,0,173,0,0,0,0]
["QHM","RVW","NORTH TEES AND HARTLEPOOL NHS FOUNDATION TRUST",352,9852,0.92897727272727271,4.261363636363636E-2,289,38,9,9,6,1,352,0,0,0,0,0,0,0]
["QHM","RTF","NORTHUMBRIA HEALTHCARE NHS FOUNDATION TRUST",1052,32614,0.93631178707224338,2.5665399239543727E-2,780,205,36,17,10,4,770,0,0,0,282,0,0,0]
["QHM","RTR","SOUTH TEES HOSPITALS NHS FOUNDATION TRUST",1041,41641,0.96926032660902983,1.633045148895293E-2,880,129,14,9,8,1,1010,6,0,3,0,0,22,0]
["QHM","R0B","SOUTH TYNESIDE AND SUNDERLAND NHS FOUNDATION TRUST",113,"NA",0.93805309734513276,4.4247787610619468E-2,"*","*","*","*","*","*","*","*","*","*","*","*","*","*"]
["QHM","RTD","THE NEWCASTLE UPON TYNE HOSPITALS NHS FOUNDATION TRUST",1784,87275,0.96468609865470856,7.2869955156950675E-3,1433,288,47,8,5,3,0,0,0,0,1727,0,57,0]
["QJ2","RFS","CHESTERFIELD ROYAL HOSPITAL NHS FOUNDATION TRUST",1035,24039,0.93913043478260871,3.5748792270531404E-2,797,175,25,16,21,1,853,8,0,169,0,0,5,0]
["QJ2","RTG","UNIVERSITY HOSPITALS OF DERBY AND BURTON NHS FOUNDATION TRUST",5041,49103,0.94068637175163661,2.8764134100376908E-2,3971,771,145,75,70,9,4351,0,0,103,0,0,587,0]
["QJG","RDE","EAST SUFFOLK AND NORTH ESSEX NHS FOUNDATION TRUST",9190,37301,0.9363438520130577,2.6224156692056584E-2,7180,1425,265,132,109,79,4103,0,0,43,0,4403,641,0]
["QJG","RGR","WEST SUFFOLK NHS FOUNDATION TRUST",214,23115,0.98130841121495327,9.3457943925233638E-3,171,39,2,0,2,0,0,38,0,111,0,0,65,0]
["QJK","RBZ","NORTHERN DEVON HEALTHCARE NHS TRUST",199,10569,0.95477386934673369,3.015075376884422E-2,162,28,3,2,4,0,0,0,0,162,0,0,37,0]
["QJK","RH8","ROYAL DEVON AND EXETER NHS FOUNDATION TRUST",81,28467,0.93827160493827155,1.2345679012345678E-2,70,6,4,1,0,0,0,0,0,81,0,0,0,0]
["QJK","RA9","TORBAY AND SOUTH DEVON NHS FOUNDATION TRUST",67,27551,0.9850746268656716,0,64,2,1,0,0,0,0,0,0,67,0,0,0,0]
["QJK","RK9","UNIVERSITY HOSPITALS PLYMOUTH NHS TRUST",248,28119,0.98790322580645162,4.0322580645161289E-3,218,27,2,1,0,0,0,5,0,242,0,0,1,0]
["QJM","RWD","UNITED LINCOLNSHIRE HOSPITALS NHS TRUST",3235,41027,0.92859350850077282,3.2457496136012363E-2,2520,484,92,56,49,34,1391,0,0,0,0,1404,440,0]
["QK1","RWE","UNIVERSITY HOSPITALS OF LEICESTER NHS TRUST",9767,63193,0.94379031432374316,2.9384662639500358E-2,8083,1135,234,121,166,28,8023,546,0,1181,0,0,17,0]
["QKK","RJ1","GUY'S AND ST THOMAS' NHS FOUNDATION TRUST",3044,77764,0.92641261498028904,3.7779237844940868E-2,2372,448,94,52,63,15,2079,39,0,451,0,0,475,0]
["QKK","RJZ","KING'S COLLEGE HOSPITAL NHS FOUNDATION TRUST",7014,75491,0.9070430567436556,5.146849158825207E-2,5062,1300,258,187,174,33,6888,50,0,0,7,0,69,0]
["QKK","RJ2","LEWISHAM AND GREENWICH NHS TRUST",3645,46078,0.9100137174211248,5.1577503429355284E-2,2596,721,129,86,102,11,2860,0,0,629,0,0,156,0]
["QKS","RN7","DARTFORD AND GRAVESHAM NHS TRUST",351,15829,0.96866096866096862,1.4245014245014245E-2,174,166,3,4,1,3,0,90,0,166,0,0,95,0]
["QKS","RVV","EAST KENT HOSPITALS UNIVERSITY NHS FOUNDATION TRUST",7793,36069,0.93827794174258949,3.182343128448608E-2,6298,1014,233,144,104,0,7793,0,0,0,0,0,0,0]
["QKS","RWF","MAIDSTONE AND TUNBRIDGE WELLS NHS TRUST",1866,36262,0.86816720257234725,7.1275455519828515E-2,1346,274,78,47,86,35,0,0,0,194,0,1404,268,0]
["QKS","RPA","MEDWAY NHS FOUNDATION TRUST",1968,24491,0.89227642276422769,5.1321138211382115E-2,1436,320,84,35,66,27,1536,0,0,0,0,432,0,0]
["QM7","RWH","EAST AND NORTH HERTFORDSHIRE NHS TRUST",572,31801,0.95104895104895104,1.048951048951049E-2,426,118,16,4,2,6,0,10,0,494,0,58,10,0]
["QM7","RQW","THE PRINCESS ALEXANDRA HOSPITAL NHS TRUST",948,19035,0.9324894514767933,3.4810126582278479E-2,718,166,27,13,20,4,0,0,0,0,0,0,0,948]
["QM7","RWG","WEST HERTFORDSHIRE TEACHING HOSPITALS NHS TRUST",158,24518,0.99367088607594933,0,143,14,0,0,0,1,0,158,0,0,0,0,0,0]
["QMF","RF4","BARKING, HAVERING AND REDBRIDGE UNIVERSITY HOSPITALS NHS TRUST",688,38451,0.92441860465116277,3.3430232558139532E-2,563,73,5,3,20,24,0,29,0,649,0,0,10,0]
["QMF","R1H","BARTS HEALTH NHS TRUST",11567,110639,0.85985994639923924,7.3744272499351601E-2,7880,2066,463,315,538,305,9977,0,0,1561,0,0,29,0]
["QMF","RQX","HOMERTON UNIVERSITY HOSPITAL NHS FOUNDATION TRUST",81,27381,0.97530864197530864,1.2345679012345678E-2,76,3,1,0,1,0,0,16,0,34,0,0,31,0]
["QMJ","RP4","GREAT ORMOND STREET HOSPITAL FOR CHILDREN NHS FOUNDATION TRUST",498,15975,0.97590361445783136,1.8072289156626505E-2,447,39,2,1,8,1,0,0,0,460,0,0,38,0]
["QMJ","RP6","MOORFIELDS EYE HOSPITAL NHS FOUNDATION TRUST",14744,41996,0.93142973412913732,1.9262072707542051E-2,11694,2039,309,149,135,418,14744,0,0,0,0,0,0,0]
["QMJ","RAP","NORTH MIDDLESEX UNIVERSITY HOSPITAL NHS TRUST",1268,29118,0.81309148264984232,0.12460567823343849,809,222,51,53,105,28,1266,2,0,0,0,0,0,0]
["QMJ","RAL","ROYAL FREE LONDON NHS FOUNDATION TRUST",583,77510,0.84734133790737565,7.8902229845626073E-2,393,101,26,13,33,17,0,551,0,0,0,0,32,0]
["QMJ","RRV","UNIVERSITY COLLEGE LONDON HOSPITALS NHS FOUNDATION TRUST",5384,69108,0.92124814264487365,3.8447251114413078E-2,4282,678,157,91,116,60,4013,0,0,0,0,1371,0,0]
["QMJ","RKE","WHITTINGTON HEALTH NHS TRUST",60,18145,0.93333333333333335,1.6666666666666666E-2,51,5,2,0,1,1,0,1,0,59,0,0,0,0]
["QMM","RGP","JAMES PAGET UNIVERSITY HOSPITALS NHS FOUNDATION TRUST",1969,17651,0.99085830370746575,2.0314880650076179E-3,1827,124,12,2,2,2,0,0,0,1969,0,0,0,0]
["QMM","RM1","NORFOLK AND NORWICH UNIVERSITY HOSPITALS NHS FOUNDATION TRUST",2610,40887,0.94406130268199229,2.7203065134099615E-2,2195,269,74,38,33,1,0,0,0,575,0,0,2035,0]
["QMM","RCX","THE QUEEN ELIZABETH HOSPITAL, KING'S LYNN, NHS FOUNDATION TRUST",1241,19924,0.93070104754230454,3.8678485092667206E-2,1009,146,35,27,21,3,0,0,0,293,0,0,948,0]
["QNC","RRE","MIDLANDS PARTNERSHIP NHS FOUNDATION TRUST",6,2115,1,0,6,0,0,0,0,0,0,0,0,0,0,0,6,0]
["QNC","RJE","UNIVERSITY HOSPITALS OF NORTH MIDLANDS NHS TRUST",3888,45998,0.95396090534979427,1.954732510288066E-2,3348,361,62,41,35,41,3300,190,0,396,0,0,2,0]
["QNQ","RDU","FRIMLEY HEALTH NHS FOUNDATION TRUST",2366,41313,0.93956043956043955,2.5359256128486898E-2,1793,430,77,31,29,6,1759,1,0,606,0,0,0,0]
["QNX","RXC","EAST SUSSEX HEALTHCARE NHS TRUST",355,24612,0.9915492957746479,2.8169014084507044E-3,350,2,2,0,1,0,0,0,355,0,0,0,0,0]
["QNX","RPC","QUEEN VICTORIA HOSPITAL NHS FOUNDATION TRUST",1196,15001,0.95484949832775923,1.4214046822742474E-2,979,163,29,10,7,8,367,0,0,158,0,671,0,0]
["QNX","RYR","UNIVERSITY HOSPITALS SUSSEX NHS FOUNDATION TRUST",2212,28310,0.95027124773960214,2.6220614828209764E-2,1887,215,37,14,44,15,1195,14,0,777,0,183,43,0]
["QOC","RL1","THE ROBERT JONES AND AGNES HUNT ORTHOPAEDIC HOSPITAL NHS FOUNDATION TRUST",1678,6671,0.97556615017878423,7.7473182359952325E-3,1520,117,25,10,3,3,1623,34,21,0,0,0,0,0]
["QOC","RXW","THE SHREWSBURY AND TELFORD HOSPITAL NHS TRUST",1113,26791,0.98831985624438456,5.3908355795148251E-3,976,124,6,3,3,1,0,0,0,1111,0,0,2,0]
["QOP","RMC","BOLTON NHS FOUNDATION TRUST",2548,20678,0.92582417582417587,4.1993720565149134E-2,2081,278,64,48,59,18,2436,0,0,105,0,0,7,0]
["QOP","R0A","MANCHESTER UNIVERSITY NHS FOUNDATION TRUST",7122,109713,0.93133951137320981,3.6366189272676215E-2,5714,919,174,116,143,56,2512,1570,0,1620,0,570,850,0]
["QOP","RWJ","STOCKPORT NHS FOUNDATION TRUST",786,23554,0.91730279898218825,3.689567430025445E-2,603,118,29,16,13,7,606,0,0,6,0,174,0,0]
["QOP","RMP","TAMESIDE AND GLOSSOP INTEGRATED CARE NHS FOUNDATION TRUST",1609,14683,0.91423244251087632,4.5991298943443129E-2,1288,183,58,24,50,6,0,20,0,0,0,0,1589,0]
["QOP","RBV","THE CHRISTIE NHS FOUNDATION TRUST",1792,29631,0.9464285714285714,1.8415178571428572E-2,1506,190,39,17,16,24,1792,0,0,0,0,0,0,0]
["QOP","RRF","WRIGHTINGTON, WIGAN AND LEIGH NHS FOUNDATION TRUST",526,27197,0.95437262357414454,2.2813688212927757E-2,449,53,9,6,6,3,352,0,0,67,0,106,1,0]
["QOQ","RCD","HARROGATE AND DISTRICT NHS FOUNDATION TRUST",2310,15172,0.9311688311688312,2.5108225108225107E-2,1762,389,89,28,30,12,0,0,0,0,0,2310,0,0]
["QOQ","RWA","HULL UNIVERSITY TEACHING HOSPITALS NHS TRUST",5316,49363,0.91948833709556055,4.1008276899924756E-2,4152,736,163,105,113,47,4323,0,0,51,0,941,1,0]
["QOQ","RJL","NORTHERN LINCOLNSHIRE AND GOOLE NHS FOUNDATION TRUST",34,29908,0.91176470588235292,2.9411764705882353E-2,30,1,0,1,0,2,0,0,0,31,0,0,3,0]
["QOQ","RCB","YORK AND SCARBOROUGH TEACHING HOSPITALS NHS FOUNDATION TRUST",732,30765,0.93306010928961747,3.825136612021858E-2,603,80,18,10,18,3,574,0,0,158,0,0,0,0]
["QOX","RN3","GREAT WESTERN HOSPITALS NHS FOUNDATION TRUST",726,21113,0.97796143250688705,9.6418732782369149E-3,671,39,4,3,4,5,0,0,0,709,0,0,17,0]
["QOX","RD1","ROYAL UNITED HOSPITALS BATH NHS FOUNDATION TRUST",179,31733,0.98324022346368711,1.6759776536312849E-2,163,13,0,2,1,0,0,0,0,173,0,0,6,0]
["QOX","RNZ","SALISBURY NHS FOUNDATION TRUST",261,13461,1,0,243,18,0,0,0,0,0,0,0,185,0,0,76,0]
["QPM","RNQ","KETTERING GENERAL HOSPITAL NHS FOUNDATION TRUST",1396,23674,0.92335243553008595,1.0744985673352435E-2,953,336,85,6,9,7,0,0,0,0,0,0,1396,0]
["QPM","RNS","NORTHAMPTON GENERAL HOSPITAL NHS TRUST",2048,33828,0.92919921875,2.978515625E-2,1582,321,65,32,29,19,1421,0,0,0,146,418,63,0]
["QR1","RTE","GLOUCESTERSHIRE HOSPITALS NHS FOUNDATION TRUST",4447,45709,0.9341128850910726,3.170676860805037E-2,3404,750,136,84,57,16,3695,0,0,0,0,746,6,0]
["QRL","RN5","HAMPSHIRE HOSPITALS NHS FOUNDATION TRUST",1485,31742,0.95084175084175082,2.2895622895622896E-2,1238,174,35,20,14,4,400,0,0,727,0,301,57,0]
["QRL","R1F","ISLE OF WIGHT NHS TRUST",370,11546,0.98648648648648651,5.4054054054054057E-3,331,34,3,0,2,0,0,0,0,0,370,0,0,0]
["QRL","RHU","PORTSMOUTH HOSPITALS UNIVERSITY NATIONAL HEALTH SERVICE TRUST",4050,47392,0.93555555555555558,3.0617283950617285E-2,3318,471,115,46,78,22,4050,0,0,0,0,0,0,0]
["QRL","RHM","UNIVERSITY HOSPITAL SOUTHAMPTON NHS FOUNDATION TRUST",453,50460,0.98013245033112584,1.1037527593818985E-2,353,91,4,2,3,0,0,0,0,0,292,0,161,0]
["QRV","RQM","CHELSEA AND WESTMINSTER HOSPITAL NHS FOUNDATION TRUST",201,50804,0.96517412935323388,2.4875621890547265E-2,180,14,2,2,3,0,0,0,0,0,0,0,201,0]
["QRV","RYJ","IMPERIAL COLLEGE HEALTHCARE NHS TRUST",6334,77893,0.89359014840543105,3.6154089043258605E-2,4807,853,174,96,133,271,0,191,0,349,0,0,5794,0]
["QRV","R1K","LONDON NORTH WEST UNIVERSITY HEALTHCARE NHS TRUST",1742,39878,0.98966704936854188,2.2962112514351321E-3,1613,111,11,2,2,3,0,0,0,1734,0,0,8,0]
["QRV","RAN","ROYAL NATIONAL ORTHOPAEDIC HOSPITAL NHS TRUST",1399,3309,0.95568263045032165,2.28734810578985E-2,1228,109,30,12,20,0,0,726,0,0,0,0,673,0]
["QRV","RAS","THE HILLINGDON HOSPITALS NHS FOUNDATION TRUST",2673,21219,0.90534979423868311,4.9008604564160119E-2,1908,512,112,66,65,10,0,0,3,0,275,0,2395,0]
["QRV","RPY","THE ROYAL MARSDEN NHS FOUNDATION TRUST",1167,17275,0.96229648671808055,1.970865467009426E-2,1015,108,17,9,14,4,0,0,0,0,0,0,1167,0]
["QSL","RH5","SOMERSET NHS FOUNDATION TRUST",208,641,0.99519230769230771,0,196,11,1,0,0,0,0,0,0,193,0,0,15,0]
["QSL","RA4","YEOVIL DISTRICT HOSPITAL NHS FOUNDATION TRUST",79,10553,0.98734177215189878,0,72,6,1,0,0,0,9,0,0,22,48,0,0,0]
["QT1","RX1","NOTTINGHAM UNIVERSITY HOSPITALS NHS TRUST",1979,44108,0.96058615462354724,1.6169782718544721E-2,1654,247,31,14,18,15,0,17,0,1833,0,129,0,0]
["QT1","RK5","SHERWOOD FOREST HOSPITALS NHS FOUNDATION TRUST",4034,29374,0.95141298958849774,2.5532969757064948E-2,3423,415,78,56,47,15,3885,0,0,148,0,0,1,0]
["QT6","REF","ROYAL CORNWALL HOSPITALS NHS TRUST",1310,33945,0.95572519083969465,2.2900763358778626E-2,1109,143,20,15,15,8,273,118,0,1,0,0,918,0]
["QU9","RXQ","BUCKINGHAMSHIRE HEALTHCARE NHS TRUST",4092,24627,0.91935483870967738,3.3724340175953077E-2,3160,602,149,63,75,43,3403,0,0,0,0,689,0,0]
["QU9","RTH","OXFORD UNIVERSITY HOSPITALS NHS FOUNDATION TRUST",5398,62596,0.93052982586143018,3.6865505742867725E-2,4372,651,160,101,98,16,4729,0,0,0,27,0,642,0]
["QU9","RHW","ROYAL BERKSHIRE NHS FOUNDATION TRUST",2117,43144,0.95181861124232403,2.2673594709494569E-2,1860,155,48,23,25,6,1266,0,0,848,0,0,3,0]
["QUA","RXK","SANDWELL AND WEST BIRMINGHAM HOSPITALS NHS TRUST",3958,44473,0.88933804951995954,6.0636685194542697E-2,2836,684,160,102,138,38,3329,0,0,0,0,629,0,0]
["QUA","RNA","THE DUDLEY GROUP NHS FOUNDATION TRUST",1085,32251,0.83963133640553,4.5161290322580643E-2,797,114,29,17,32,96,894,0,0,175,0,0,16,0]
["QUA","RL4","THE ROYAL WOLVERHAMPTON NHS TRUST",1825,48262,0.94136986301369863,2.5205479452054796E-2,1429,289,51,24,22,10,797,0,0,0,0,1026,2,0]
["QUA","RBK","WALSALL HEALTHCARE NHS TRUST",1915,17048,0.92741514360313315,3.1853785900783291E-2,1475,301,64,19,42,14,1576,0,0,0,0,339,0,0]
["QUE","RGT","CAMBRIDGE UNIVERSITY HOSPITALS NHS FOUNDATION TRUST",7959,44388,0.9575323533107174,2.1610755119989947E-2,6836,785,147,68,104,19,7914,0,0,38,0,0,7,0]
["QUE","RGN","NORTH WEST ANGLIA NHS FOUNDATION TRUST",1184,43360,0.9721283783783784,1.097972972972973E-2,1009,142,7,8,5,13,0,0,0,1165,0,0,19,0]
["QUY","RVJ","NORTH BRISTOL NHS TRUST",3907,29480,0.94113130278986434,2.5595085743537242E-2,3228,449,107,46,54,23,2317,0,0,0,0,1581,9,0]
["QUY","RA7","UNIVERSITY HOSPITALS BRISTOL AND WESTON NHS FOUNDATION TRUST",2078,44988,0.93455245428296441,2.8873917228103944E-2,1674,268,44,34,26,32,2007,0,0,31,40,0,0,0]
["QVV","RBD","DORSET COUNTY HOSPITAL NHS FOUNDATION TRUST",1778,13568,0.9296962879640045,2.2497187851518559E-2,1383,270,56,16,24,29,1760,0,0,0,0,18,0,0]
["QVV","R0D","UNIVERSITY HOSPITALS DORSET NHS FOUNDATION TRUST",2048,"NA",0.9521484375,1.611328125E-2,1665,285,41,16,17,24,1532,0,0,0,33,0,483,0]
["QWE","RJ6","CROYDON HEALTH SERVICES NHS TRUST",3501,29462,0.9354470151385319,3.8560411311053984E-2,2805,470,75,60,75,16,3501,0,0,0,0,0,0,0]
["QWE","RVR","EPSOM AND ST HELIER UNIVERSITY HOSPITALS NHS TRUST",1967,26135,0.93746822572445343,3.1011692933401117E-2,1577,267,53,23,38,9,1257,14,0,339,0,298,59,0]
["QWE","RAX","KINGSTON HOSPITAL NHS FOUNDATION TRUST",3213,23593,0.91907874260815436,4.6374105197634609E-2,2478,475,104,64,85,7,2845,0,5,0,0,357,6,0]
["QWE","RJ7","ST GEORGE'S UNIVERSITY HOSPITALS NHS FOUNDATION TRUST",2370,54401,0.9248945147679325,7.2151898734177211E-2,2156,36,1,1,170,6,0,126,0,159,0,0,2085,0]
["QWO","RCF","AIREDALE NHS FOUNDATION TRUST",973,12503,0.92497430626927035,3.9054470709146971E-2,776,124,28,22,16,7,945,0,0,0,0,0,28,0]
["QWO","RAE","BRADFORD TEACHING HOSPITALS NHS FOUNDATION TRUST",847,27867,0.9161747343565525,5.0767414403778043E-2,679,97,23,17,26,5,840,0,3,0,0,0,0,4]
["QWO","RWY","CALDERDALE AND HUDDERSFIELD NHS FOUNDATION TRUST",1783,28861,0.92148065058889517,3.8698822209758836E-2,1420,223,50,32,37,21,1698,0,0,0,0,0,85,0]
["QWO","RR8","LEEDS TEACHING HOSPITALS NHS TRUST",2403,83212,0.95131086142322097,2.4136496046608405E-2,1966,320,43,16,42,16,1321,143,0,205,0,650,84,0]
["QWO","RXF","MID YORKSHIRE HOSPITALS NHS TRUST",1470,38302,0.97755102040816322,1.8367346938775512E-2,1345,92,6,20,7,0,25,0,0,1416,0,0,29,0]
["QWU","RLT","GEORGE ELIOT HOSPITAL NHS TRUST",2653,16415,0.93102148511119487,2.9023746701846966E-2,2054,416,54,40,37,52,2564,0,0,0,55,34,0,0]
["QWU","RJC","SOUTH WARWICKSHIRE NHS FOUNDATION TRUST",441,15621,0.92743764172335597,3.1746031746031744E-2,385,24,5,1,13,13,0,0,0,417,0,0,24,0]
["QWU","RKB","UNIVERSITY HOSPITALS COVENTRY AND WARWICKSHIRE NHS TRUST",1492,42058,0.91621983914209115,4.4235924932975873E-2,1165,202,45,26,40,14,1295,0,0,0,0,195,2,0]
["QXU","RTK","ASHFORD AND ST PETER'S HOSPITALS NHS FOUNDATION TRUST",2523,33764,0.90764962346413003,5.8263971462544591E-2,2001,289,51,39,108,35,613,0,0,0,0,0,1910,0]
["QXU","RA2","ROYAL SURREY COUNTY HOSPITAL NHS FOUNDATION TRUST",1586,22866,0.92749054224464056,3.4047919293820936E-2,1284,187,57,26,28,4,1569,0,0,0,0,17,0,0]
["QXU","RTP","SURREY AND SUSSEX HEALTHCARE NHS TRUST",1890,22589,0.91640211640211644,4.9206349206349205E-2,1411,321,60,49,44,5,1435,0,0,331,0,23,101,0]
["QYG","RBS","ALDER HEY CHILDREN'S NHS FOUNDATION TRUST",707,14548,0.94059405940594054,4.3847241867043849E-2,578,87,9,16,15,2,522,44,0,0,0,0,141,0]
["QYG","RJN","EAST CHESHIRE NHS TRUST",1888,9606,0.95180084745762716,2.4364406779661018E-2,1637,160,37,24,22,8,1393,0,0,0,0,495,0,0]
["QYG","RBQ","LIVERPOOL HEART AND CHEST HOSPITAL NHS FOUNDATION TRUST",0,4186,"NA","NA",0,0,0,0,0,0,0,0,0,0,0,0,0,0]
["QYG","REM","LIVERPOOL UNIVERSITY HOSPITALS NHS FOUNDATION TRUST",9553,22860,0.92923688893541301,3.7684497016643989E-2,7890,987,250,154,206,66,8352,0,0,0,0,1201,0,0]
["QYG","REP","LIVERPOOL WOMEN'S NHS FOUNDATION TRUST",633,10791,0.93364928909952605,3.15955766192733E-2,523,68,10,10,10,12,0,0,0,0,0,0,0,633]
["QYG","RBT","MID CHESHIRE HOSPITALS NHS FOUNDATION TRUST",2085,19971,0.93764988009592332,2.9736211031175061E-2,1679,276,59,36,26,9,1654,0,0,0,0,431,0,0]
["QYG","RVY","SOUTHPORT AND ORMSKIRK HOSPITAL NHS TRUST",2229,16710,0.94167788245850159,2.826379542395693E-2,1845,254,55,26,37,12,1873,0,0,0,0,355,1,0]
["QYG","RBN","ST HELENS AND KNOWSLEY TEACHING HOSPITALS NHS TRUST",4781,31668,0.94038903994980128,2.7818448023426062E-2,4000,496,125,63,70,27,4153,0,0,23,0,527,78,0]
["QYG","REN","THE CLATTERBRIDGE CANCER CENTRE NHS FOUNDATION TRUST",1929,21976,0.96526697770865733,1.762571280456195E-2,1711,151,31,15,19,2,1929,0,0,0,0,0,0,0]
["QYG","RET","THE WALTON CENTRE NHS FOUNDATION TRUST",228,9230,0.94736842105263153,1.3157894736842105E-2,192,24,4,1,2,5,0,0,0,0,0,0,228,0]
["QYG","RWW","WARRINGTON AND HALTON TEACHING HOSPITALS NHS FOUNDATION TRUST",2841,24822,0.93206617388243573,3.3438929954241463E-2,2263,385,79,39,56,19,1690,0,0,46,0,1098,7,0]
["QYG","RBL","WIRRAL UNIVERSITY TEACHING HOSPITAL NHS FOUNDATION TRUST",3725,26241,0.94093959731543619,2.7114093959731543E-2,3143,362,99,48,53,20,2931,0,0,0,0,794,0,0]
["IS1","NT401","ALEXANDRA HOSPITAL",0,2894,"NA","NA",0,0,0,0,0,0,0,0,0,0,0,0,0,0]
["IS1","NYW17","ASPEN HEALTHCARE - MIDLAND EYE",23,267,1,0,21,2,0,0,0,0,0,0,0,23,0,0,0,0]
["IS1","NT402","BATH CLINIC",6,599,1,0,5,1,0,0,0,0,0,0,0,6,0,0,0,0]
["IS1","NT403","BEARDWOOD HOSPITAL",1,2371,"*","*","*","*","*","*","*","*","*","*","*","*","*","*","*","*"]
["IS1","NT404","BEAUMONT HOSPITAL",99,2599,1,0,92,7,0,0,0,0,0,0,0,99,0,0,0,0]
["IS1","NWF01","BENENDEN HOSPITAL",23,"NA",0.86956521739130432,8.6956521739130432E-2,18,2,1,2,0,0,0,0,0,0,0,0,23,0]
["IS1","NT405","BISHOPS WOOD",50,841,1,0,46,4,0,0,0,0,0,0,0,50,0,0,0,0]
["IS1","NT406","BLACKHEATH HOSPITAL",6,1079,1,0,5,1,0,0,0,0,0,0,0,6,0,0,0,0]
["IS1","NT451","CAVELL HOSPITAL",40,934,1,0,36,4,0,0,0,0,0,0,0,40,0,0,0,0]
["IS1","NT408","CHAUCER HOSPITAL",12,844,1,0,12,0,0,0,0,0,0,0,0,12,0,0,0,0]
["IS1","NT409","CHELSFIELD PARK HOSPITAL",1,748,"*","*","*","*","*","*","*","*","*","*","*","*","*","*","*","*"]
["IS1","NT410","CHILTERN HOSPITAL",3,501,"*","*","*","*","*","*","*","*","*","*","*","*","*","*","*","*"]
["IS1","NT411","CLEMENTINE CHURCHILL HOSPITAL",20,1945,1,0,16,4,0,0,0,0,0,0,0,20,0,0,0,0]
["IS1","NNE","DORKING HEALTHCARE LIMITED (DHC)",255,2078,0.97254901960784312,7.8431372549019607E-3,207,41,4,2,0,1,0,0,0,3,2,0,250,0]
["IS1","NT412","DROITWICH SPA HOSPITAL",109,1544,0.99082568807339455,9.1743119266055051E-3,105,3,0,0,1,0,0,0,0,109,0,0,0,0]
["IS1","NT447","DUCHY HOSPITAL",55,478,1,0,53,2,0,0,0,0,0,0,0,55,0,0,0,0]
["IS1","NT445","EDGBASTON HOSPITAL",18,1529,1,0,17,1,0,0,0,0,0,0,0,18,0,0,0,0]
["IS1","ACM","EYE CARE MEDICAL LTD",9,"NA",0.88888888888888884,0,8,0,1,0,0,0,0,0,0,9,0,0,0,0]
["IS1","NVG01","FAIRFIELD HOSPITAL",72,1777,0.98611111111111116,0,58,13,1,0,0,0,0,0,0,72,0,0,0,0]
["IS1","NT417","GORING HALL HOSPITAL",3,1339,"*","*","*","*","*","*","*","*","*","*","*","*","*","*","*","*"]
["IS1","NT418","HAMPSHIRE CLINIC",0,1289,"NA","NA",0,0,0,0,0,0,0,0,0,0,0,0,0,0]
["IS1","NT419","HARBOUR HOSPITAL",3,160,"*","*","*","*","*","*","*","*","*","*","*","*","*","*","*","*"]
["IS1","NQT","HCRG CARE LTD",348,208,0.96264367816091956,0,198,137,11,0,0,2,0,0,0,0,348,0,0,0]
["IS1","NDA","HCRG CARE SERVICES LTD",13,"NA",1,0,9,4,0,0,0,0,0,0,0,0,13,0,0,0]
["IS1","NT416","HENDON HOSPITAL",2,1241,"*","*","*","*","*","*","*","*","*","*","*","*","*","*","*","*"]
["IS1","NT420","HIGHFIELD HOSPITAL",71,1332,1,0,71,0,0,0,0,0,0,0,0,71,0,0,0,0]
["IS1","NXM","HORDER HEALTHCARE",32,411,1,0,30,2,0,0,0,0,0,0,0,32,0,0,0,0]
["IS1","NT448","HUDDERSFIELD HOSPITAL",89,1620,0.9887640449438202,0,72,16,1,0,0,0,0,0,0,89,0,0,0,0]
["IS1","NV1","INHEALTH LIMITED",5146,2933,0.94617178390983292,2.0015546055188495E-2,4175,694,108,56,47,66,0,0,0,0,0,0,5146,0]
["IS1","NCR","ISIGHT",21,476,1,0,20,1,0,0,0,0,0,0,0,0,21,0,0,0]
["IS1","ADP","KIMS HOSPITAL",81,2845,1,0,77,4,0,0,0,0,0,0,0,0,37,0,44,0]
["IS1","NT421","KINGS OAK HOSPITAL",0,988,"NA","NA",0,0,0,0,0,0,0,0,0,0,0,0,0,0]
["IS1","NT449","LANCASTER HOSPITAL",4,541,"*","*","*","*","*","*","*","*","*","*","*","*","*","*","*","*"]
["IS1","NT450","LINCOLN HOSPITAL",0,732,"NA","NA",0,0,0,0,0,0,0,0,0,0,0,0,0,0]
["IS1","NT422","LONDON INDEPENDENT HOSPITAL",350,2814,0.97714285714285709,1.4285714285714285E-2,302,40,3,1,4,0,0,0,0,350,0,0,0,0]
["IS1","NT423","MANOR HOSPITAL",9,486,1,0,9,0,0,0,0,0,0,0,0,9,0,0,0,0]
["IS1","NT424","MERIDEN HOSPITAL",0,1731,"NA","NA",0,0,0,0,0,0,0,0,0,0,0,0,0,0]
["IS1","NT455","MOUNT ALVERNIA HOSPITAL",96,1448,0.97916666666666663,0,89,5,2,0,0,0,0,0,0,96,0,0,0,0]
["IS1","ACG20","NEWMEDICA - BRISTOL - LITFIELD HOUSE",0,"NA","NA","NA",0,0,0,0,0,0,0,0,0,0,0,0,0,0]
["IS1","Q1S8W","NEWMEDICA - BURY ST EDMUNDS",12,"NA",1,0,11,1,0,0,0,0,0,0,0,12,0,0,0,0]
["IS1","ACG36","NEWMEDICA - EXETER - GLEN HOUSE",4,"NA","*","*","*","*","*","*","*","*","*","*","*","*","*","*","*","*"]
["IS1","ACG41","NEWMEDICA - FROME",1,"NA","*","*","*","*","*","*","*","*","*","*","*","*","*","*","*","*"]
["IS1","ACG13","NEWMEDICA - GLOUCESTER (ASPEN MEDICAL CENTRE)",2,"NA","*","*","*","*","*","*","*","*","*","*","*","*","*","*","*","*"]
["IS1","L0D9W","NEWMEDICA - GLOUCESTER (BRIGHOUSE COURT)",2,"NA","*","*","*","*","*","*","*","*","*","*","*","*","*","*","*","*"]
["IS1","ACG37","NEWMEDICA - IPSWICH",2,"NA","*","*","*","*","*","*","*","*","*","*","*","*","*","*","*","*"]
["IS1","ACG38","NEWMEDICA - LANGFORD",1,"NA","*","*","*","*","*","*","*","*","*","*","*","*","*","*","*","*"]
["IS1","N6Z0R","NEWMEDICA - LINCOLN",0,"NA","NA","NA",0,0,0,0,0,0,0,0,0,0,0,0,0,0]
["IS1","B5M7B","NEWMEDICA - NORWICH",0,"NA","NA","NA",0,0,0,0,0,0,0,0,0,0,0,0,0,0]
["IS1","P5Y6K","NEWMEDICA - SHREWSBURY",0,"NA","NA","NA",0,0,0,0,0,0,0,0,0,0,0,0,0,0]
["IS1","ACG39","NEWMEDICA - SWINDON",0,"NA","NA","NA",0,0,0,0,0,0,0,0,0,0,0,0,0,0]
["IS1","ACG24","NEWMEDICA - TEESSIDE - NORTH ORMESBY",0,"NA","NA","NA",0,0,0,0,0,0,0,0,0,0,0,0,0,0]
["IS1","ACG40","NEWMEDICA - WAKEFIELD",0,"NA","NA","NA",0,0,0,0,0,0,0,0,0,0,0,0,0,0]
["IS1","ACG30","NEWMEDICA - WORKSOP - DUKERIES",0,"NA","NA","NA",0,0,0,0,0,0,0,0,0,0,0,0,0,0]
["IS1","ACG19","NEWMEDICA COMMUNITY OPHTHALMOLOGY - LEEDS",2,"NA","*","*","*","*","*","*","*","*","*","*","*","*","*","*","*","*"]
["IS1","ACG07","NEWMEDICA COMMUNITY OPHTHALMOLOGY - LEICESTERSHIRE - LEICESTER (STONEYGATE EYE HOSPITAL)",2,"NA","*","*","*","*","*","*","*","*","*","*","*","*","*","*","*","*"]
["IS1","ACG09","NEWMEDICA COMMUNITY OPHTHALMOLOGY - NORTH DERBYSHIRE - BARLBOROUGH TREATMENT CENTRE",10,"NA",1,0,10,0,0,0,0,0,0,0,0,9,0,0,1,0]
["IS1","ACG12","NEWMEDICA COMMUNITY OPHTHALMOLOGY - NORTH EAST LINCOLNSHIRE - GRIMSBY",1,"NA","*","*","*","*","*","*","*","*","*","*","*","*","*","*","*","*"]
["IS1","ACG08","NEWMEDICA OPHTHALMOLOGY - NUNEATON - CAMP HILL - GP LED HEALTH CENTRE",0,"NA","NA","NA",0,0,0,0,0,0,0,0,0,0,0,0,0,0]
["IS1","Y05019","OLDHAM TOTAL SKIN SERVICE",321,"NA",0.96261682242990654,0,183,126,11,0,0,1,0,0,0,0,321,0,0,0]
["IS1","NT427","PARK HOSPITAL",124,1044,1,0,122,2,0,0,0,0,0,0,0,124,0,0,0,0]
["IS1","NMN","PENINSULA HEALTH LLP",0,"NA","NA","NA",0,0,0,0,0,0,0,0,0,0,0,0,0,0]
["IS1","NEQ","PHOENIX HEALTH SOLUTIONS LIMITED HQ",39,"NA",0.89743589743589747,2.564102564102564E-2,27,8,3,1,0,0,39,0,0,0,0,0,0,0]
["IS1","NEY","PIONEER HEALTHCARE LIMITED",73,164,0.9178082191780822,8.2191780821917804E-2,56,11,0,2,4,0,73,0,0,0,0,0,0,0]
["IS1","NTP13","PRACTICE PLUS GROUP HOSPITAL - BARLBOROUGH",364,1064,0.96978021978021978,8.241758241758242E-3,317,36,8,2,1,0,352,12,0,0,0,0,0,0]
["IS1","NTPH2","PRACTICE PLUS GROUP HOSPITAL - EMERSONS GREEN",144,1637,0.99305555555555558,0,126,17,1,0,0,0,0,144,0,0,0,0,0,0]
["IS1","NTP15","PRACTICE PLUS GROUP HOSPITAL - ILFORD",1146,1910,0.98865619546247818,2.617801047120419E-3,985,148,9,3,0,1,0,0,1146,0,0,0,0,0]
["IS1","NTPH5","PRACTICE PLUS GROUP HOSPITAL - PLYMOUTH",147,960,1,0,137,10,0,0,0,0,0,147,0,0,0,0,0,0]
["IS1","NTPH1","PRACTICE PLUS GROUP HOSPITAL - SHEPTON MALLET",180,1505,1,0,156,24,0,0,0,0,0,180,0,0,0,0,0,0]
["IS1","NTP11","PRACTICE PLUS GROUP HOSPITAL - SOUTHAMPTON",163,2894,0.98773006134969321,6.1349693251533744E-3,127,34,1,1,0,0,0,163,0,0,0,0,0,0]
["IS1","NTPAE","PRACTICE PLUS GROUP OPHTHALMOLOGY - NORTH WEST",7,1464,1,0,7,0,0,0,0,0,7,0,0,0,0,0,0,0]
["IS1","NTPAD","PRACTICE PLUS GROUP SURGICAL CENTRE - ST MARYS PORTSMOUTH",582,1740,1,0,575,7,0,0,0,0,0,0,582,0,0,0,0,0]
["IS1","NT428","PRINCESS MARGARET HOSPITAL",0,463,"NA","NA",0,0,0,0,0,0,0,0,0,0,0,0,0,0]
["IS1","NT429","PRIORY HOSPITAL",0,997,"NA","NA",0,0,0,0,0,0,0,0,0,0,0,0,0,0]
["IS1","NAM","PROBUS SURGERY LIMITED",2,"NA","*","*","*","*","*","*","*","*","*","*","*","*","*","*","*","*"]
["IS1","NVC","RAMSAY HEALTHCARE UK OPERATIONS LIMITED",2094,73894,0.99140401146131807,6.2082139446036294E-3,1811,265,0,5,8,5,0,0,0,1398,0,0,696,0]
["IS1","NT430","RIDGEWAY HOSPITAL",7,1028,1,0,7,0,0,0,0,0,0,0,0,7,0,0,0,0]
["IS1","NT431","RUNNYMEDE HOSPITAL",6,157,1,0,6,0,0,0,0,0,0,0,0,6,0,0,0,0]
["IS1","NT433","SARUM ROAD HOSPITAL",9,373,1,0,9,0,0,0,0,0,0,0,0,9,0,0,0,0]
["IS1","NT434","SAXON CLINIC",9,520,1,0,5,4,0,0,0,0,0,0,0,9,0,0,0,0]
["IS1","NT435","SHELBURNE HOSPITAL",1,77,"*","*","*","*","*","*","*","*","*","*","*","*","*","*","*","*"]
["IS1","NT436","SHIRLEY OAKS HOSPITAL",67,1849,1,0,62,5,0,0,0,0,0,0,0,67,0,0,0,0]
["IS1","NT437","SLOANE HOSPITAL",67,495,0.9850746268656716,0,53,13,1,0,0,0,0,0,0,67,0,0,0,0]
["IS1","NT490","SOUTHEND PRIVATE HOSPITAL",0,433,"NA","NA",0,0,0,0,0,0,0,0,0,0,0,0,0,0]
["IS1","NT3","SPIRE HEALTHCARE",491,33444,0.95315682281059066,2.2403258655804479E-2,402,66,12,7,4,0,0,0,0,0,0,0,491,0]
["IS1","NT446","ST EDMUNDS HOSPITAL",19,370,0.94736842105263153,0,18,0,1,0,0,0,0,0,0,19,0,0,0,0]
["IS1","G3Z1Q","SULIS HOSPITAL BATH (FOXCOTE AVENUE)",57,"NA",0.94736842105263153,3.5087719298245612E-2,49,5,0,0,2,1,0,0,0,57,0,0,0,0]
["IS1","AAH","TETBURY HOSPITAL TRUST LTD",5,"NA",1,0,5,0,0,0,0,0,0,0,0,5,0,0,0,0]
["IS1","NT440","THORNBURY HOSPITAL",41,615,1,0,35,6,0,0,0,0,0,0,0,41,0,0,0,0]
["IS1","NT441","THREE SHIRES HOSPITAL",144,1982,0.99305555555555558,0,134,9,1,0,0,0,0,0,0,144,0,0,0,0]
["IS1","NT443","WINTERBOURNE HOSPITAL",1,478,"*","*","*","*","*","*","*","*","*","*","*","*","*","*","*","*"]
["IS1","NT457","WOODLANDS HOSPITAL",237,2499,0.99578059071729963,0,233,3,1,0,0,0,0,0,0,237,0,0,0,0]

{"sheet":"BS","index":4,"n_rows":227,"n_cols":24,"rows_kept":227,"cut":false,"hidden":true,"merged":[]}
[null,"Sort","Region (Local Office) code","Region (Local Office) name","Org code","Org name",null,"Sort Lists:","Sort range…","Sort range…","STP Reference Lists:","Code…","Name…","Region (Local Office) Linked Lists:","Code…","Name…","Orgs Reference List:","Code…","Code…","Name…",null,"Orgs Linked List:","Code…","Name…"]
["OP Region (Local Office)",1,1,1,"N/A","N/A",null,null,"STP Code","STP Code",null,"QE1","Healthier Lancashire and South Cumbria",null,"QE1","Healthier Lancashire and South Cumbria",null,"QE1","RXL","BLACKPOOL TEACHING HOSPITALS NHS FOUNDATION TRUST",null,null,"RXL","BLACKPOOL TEACHING HOSPITALS NHS FOUNDATION TRUST"]
["OP Orgs",1,1,1,1,1,null,null,"STP Name","Org Code",null,"QF7","South Yorkshire and Bassetlaw STP",null,"QF7","South Yorkshire and Bassetlaw STP",null,"QE1","RXR","EAST LANCASHIRE HOSPITALS NHS TRUST",null,null,"RXR","EAST LANCASHIRE HOSPITALS NHS TRUST"]
[null,null,null,null,null,null,null,null,"Total Responses","Org Name",null,"QGH","Herefordshire and Worcestershire STP",null,"QGH","Herefordshire and Worcestershire STP",null,"QE1","RXN","LANCASHIRE TEACHING HOSPITALS NHS FOUNDATION TRUST",null,null,"RXN","LANCASHIRE TEACHING HOSPITALS NHS FOUNDATION TRUST"]
[null,null,null,null,null,null,null,null,"Total Eligible","Total Responses",null,"QH8","Mid and South Essex STP",null,"QH8","Mid and South Essex STP",null,"QE1","RTX","UNIVERSITY HOSPITALS OF MORECAMBE BAY NHS FOUNDATION TRUST",null,null,"RTX","UNIVERSITY HOSPITALS OF MORECAMBE BAY NHS FOUNDATION TRUST"]
[null,null,null,null,null,null,null,null,"Percentage Positive","Total Eligible",null,"QHG","Bedfordshire, Luton and Milton Keynes STP",null,"QHG","Bedfordshire, Luton and Milton Keynes STP",null,"QF7","RFF","BARNSLEY HOSPITAL NHS FOUNDATION TRUST",null,null,"RFF","BARNSLEY HOSPITAL NHS FOUNDATION TRUST"]
[null,null,null,null,null,null,null,null,"Percentage Negative","Percentage Positive",null,"QHL","Birmingham and Solihull STP",null,"QHL","Birmingham and Solihull STP",null,"QF7","RP5","DONCASTER AND BASSETLAW TEACHING HOSPITALS NHS FOUNDATION TRUST",null,null,"RP5","DONCASTER AND BASSETLAW TEACHING HOSPITALS NHS FOUNDATION TRUST"]
[null,null,null,null,null,null,null,null,"Very Good","Percentage Negative",null,"QHM","Cumbria and North East STP",null,"QHM","Cumbria and North East STP",null,"QF7","RCU","SHEFFIELD CHILDREN'S NHS FOUNDATION TRUST",null,null,"RCU","SHEFFIELD CHILDREN'S NHS FOUNDATION TRUST"]
[null,null,null,null,null,null,null,null,"Good","Very Good",null,"QJ2","Joined Up Care Derbyshire STP",null,"QJ2","Joined Up Care Derbyshire STP",null,"QF7","RHQ","SHEFFIELD TEACHING HOSPITALS NHS FOUNDATION TRUST",null,null,"RHQ","SHEFFIELD TEACHING HOSPITALS NHS FOUNDATION TRUST"]
[null,null,null,null,null,null,null,null,"Neither Good nor Poor","Good",null,"QJG","Suffolk and North East Essex STP",null,"QJG","Suffolk and North East Essex STP",null,"QF7","RFR","THE ROTHERHAM NHS FOUNDATION TRUST",null,null,"RFR","THE ROTHERHAM NHS FOUNDATION TRUST"]
[null,null,null,null,null,null,null,null,"Poor","Neither Good nor Poor",null,"QJK","Devon STP",null,"QJK","Devon STP",null,"QGH","RWP","WORCESTERSHIRE ACUTE HOSPITALS NHS TRUST",null,null,"RWP","WORCESTERSHIRE ACUTE HOSPITALS NHS TRUST"]
[null,null,null,null,null,null,null,null,"Very Poor","Poor",null,"QJM","Lincolnshire STP",null,"QJM","Lincolnshire STP",null,"QGH","RLQ","WYE VALLEY NHS TRUST",null,null,"RLQ","WYE VALLEY NHS TRUST"]
[null,null,null,null,null,null,null,null,"Don't Know","Very Poor",null,"QK1","Leicester, Leicestershire and Rutland STP",null,"QK1","Leicester, Leicestershire and Rutland STP",null,"QH8","RAJ","MID AND SOUTH ESSEX NHS FOUNDATION TRUST",null,null,"RAJ","MID AND SOUTH ESSEX NHS FOUNDATION TRUST"]
[null,null,null,null,null,null,null,null,null,"Don't Know",null,"QKK","Our Healthier South East London STP",null,"QKK","Our Healthier South East London STP",null,"QHG","RC9","BEDFORDSHIRE HOSPITALS NHS FOUNDATION TRUST",null,null,"RC9","BEDFORDSHIRE HOSPITALS NHS FOUNDATION TRUST"]
[null,null,null,null,null,null,null,null,null,"Mode SMS",null,"QKS","Kent and Medway STP",null,"QKS","Kent and Medway STP",null,"QHG","RD8","MILTON KEYNES UNIVERSITY HOSPITAL NHS FOUNDATION TRUST",null,null,"RD8","MILTON KEYNES UNIVERSITY HOSPITAL NHS FOUNDATION TRUST"]
[null,null,null,null,null,null,null,null,null,"Mode Electronic at Appointment",null,"QM7","Hertfordshire and West Essex STP",null,"QM7","Hertfordshire and West Essex STP",null,"QHL","RQ3","BIRMINGHAM WOMEN'S AND CHILDREN'S NHS FOUNDATION TRUST",null,null,"RQ3","BIRMINGHAM WOMEN'S AND CHILDREN'S NHS FOUNDATION TRUST"]
[null,null,null,null,null,null,null,null,null,"Mode Electronic After Appointment",null,"QMF","East London Health & Care Partnership (STP)",null,"QMF","East London Health & Care Partnership (STP)",null,"QHL","RRK","UNIVERSITY HOSPITALS BIRMINGHAM NHS FOUNDATION TRUST",null,null,"RRK","UNIVERSITY HOSPITALS BIRMINGHAM NHS FOUNDATION TRUST"]
[null,null,null,null,null,null,null,null,null,"Mode Paper At Appointment",null,"QMJ","North London Partners in Health & Care (STP)",null,"QMJ","North London Partners in Health & Care (STP)",null,"QHM","RXP","COUNTY DURHAM AND DARLINGTON NHS FOUNDATION TRUST",null,null,"RXP","COUNTY DURHAM AND DARLINGTON NHS FOUNDATION TRUST"]
[null,null,null,null,null,null,null,null,null,"Mode Paper After Appointment",null,"QMM","Norfolk and Waveney Health & Care Partnership (STP)",null,"QMM","Norfolk and Waveney Health & Care Partnership (STP)",null,"QHM","RR7","GATESHEAD HEALTH NHS FOUNDATION TRUST",null,null,"RR7","GATESHEAD HEALTH NHS FOUNDATION TRUST"]
[null,null,null,null,null,null,null,null,null,"Mode Telephone",null,"QNC","Staffordshire & Stoke on Trent STP",null,"QNC","Staffordshire & Stoke on Trent STP",null,"QHM","RNN","NORTH CUMBRIA INTEGRATED CARE NHS FOUNDATION TRUST",null,null,"RNN","NORTH CUMBRIA INTEGRATED CARE NHS FOUNDATION TRUST"]
[null,null,null,null,null,null,null,null,null,"Mode Other",null,"QNQ","Frimley Health & Care (STP)",null,"QNQ","Frimley Health & Care (STP)",null,"QHM","RVW","NORTH TEES AND HARTLEPOOL NHS FOUNDATION TRUST",null,null,"RVW","NORTH TEES AND HARTLEPOOL NHS FOUNDATION TRUST"]
[null,null,null,null,null,null,null,null,null,null,null,"QNX","Sussex Health and Care Partnership STP",null,"QNX","Sussex Health and Care Partnership STP",null,"QHM","RTF","NORTHUMBRIA HEALTHCARE NHS FOUNDATION TRUST",null,null,"RTF","NORTHUMBRIA HEALTHCARE NHS FOUNDATION TRUST"]
[null,null,null,null,null,null,null,null,null,null,null,"QOC","Shropshire and Telford and Wrekin STP",null,"QOC","Shropshire and Telford and Wrekin STP",null,"QHM","RTR","SOUTH TEES HOSPITALS NHS FOUNDATION TRUST",null,null,"RTR","SOUTH TEES HOSPITALS NHS FOUNDATION TRUST"]
[null,null,null,null,null,null,null,null,null,null,null,"QOP","Greater Manchester Health & Social Care Partnership",null,"QOP","Greater Manchester Health & Social Care Partnership",null,"QHM","R0B","SOUTH TYNESIDE AND SUNDERLAND NHS FOUNDATION TRUST",null,null,"R0B","SOUTH TYNESIDE AND SUNDERLAND NHS FOUNDATION TRUST"]
[null,null,null,null,null,null,null,null,null,null,null,"QOQ","Humber, Coast and Vale STP",null,"QOQ","Humber, Coast and Vale STP",null,"QHM","RTD","THE NEWCASTLE UPON TYNE HOSPITALS NHS FOUNDATION TRUST",null,null,"RTD","THE NEWCASTLE UPON TYNE HOSPITALS NHS FOUNDATION TRUST"]
[null,null,null,null,null,null,null,null,null,null,null,"QOX","Bath and North East Somerset, Swindon and Wiltshire STP",null,"QOX","Bath and North East Somerset, Swindon and Wiltshire STP",null,"QJ2","RFS","CHESTERFIELD ROYAL HOSPITAL NHS FOUNDATION TRUST",null,null,"RFS","CHESTERFIELD ROYAL HOSPITAL NHS FOUNDATION TRUST"]
[null,null,null,null,null,null,null,null,null,null,null,"QPM","Northamptonshire STP",null,"QPM","Northamptonshire STP",null,"QJ2","RTG","UNIVERSITY HOSPITALS OF DERBY AND BURTON NHS FOUNDATION TRUST",null,null,"RTG","UNIVERSITY HOSPITALS OF DERBY AND BURTON NHS FOUNDATION TRUST"]
[null,null,null,null,null,null,null,null,null,null,null,"QR1","Gloucestershire STP",null,"QR1","Gloucestershire STP",null,"QJG","RDE","EAST SUFFOLK AND NORTH ESSEX NHS FOUNDATION TRUST",null,null,"RDE","EAST SUFFOLK AND NORTH ESSEX NHS FOUNDATION TRUST"]
[null,null,null,null,null,null,null,null,null,null,null,"QRL","Hampshire and the Isle of Wight STP",null,"QRL","Hampshire and the Isle of Wight STP",null,"QJG","RGR","WEST SUFFOLK NHS FOUNDATION TRUST",null,null,"RGR","WEST SUFFOLK NHS FOUNDATION TRUST"]
[null,null,null,null,null,null,null,null,null,null,null,"QRV","North West London Health & Care Partnership (STP)",null,"QRV","North West London Health & Care Partnership (STP)",null,"QJK","RBZ","NORTHERN DEVON HEALTHCARE NHS TRUST",null,null,"RBZ","NORTHERN DEVON HEALTHCARE NHS TRUST"]
[null,null,null,null,null,null,null,null,null,null,null,"QSL","Somerset STP",null,"QSL","Somerset STP",null,"QJK","RH8","ROYAL DEVON AND EXETER NHS FOUNDATION TRUST",null,null,"RH8","ROYAL DEVON AND EXETER NHS FOUNDATION TRUST"]
[null,null,null,null,null,null,null,null,null,null,null,"QT1","Nottingham and Nottinghamshire Health and Care STP",null,"QT1","Nottingham and Nottinghamshire Health and Care STP",null,"QJK","RA9","TORBAY AND SOUTH DEVON NHS FOUNDATION TRUST",null,null,"RA9","TORBAY AND SOUTH DEVON NHS FOUNDATION TRUST"]
[null,null,null,null,null,null,null,null,null,null,null,"QT6","Cornwall and the Isles of Scilly Health & Social Care Partnership (STP)",null,"QT6","Cornwall and the Isles of Scilly Health & Social Care Partnership (STP)",null,"QJK","RK9","UNIVERSITY HOSPITALS PLYMOUTH NHS TRUST",null,null,"RK9","UNIVERSITY HOSPITALS PLYMOUTH NHS TRUST"]
[null,null,null,null,null,null,null,null,null,null,null,"QU9","Buckinghamshire, Oxfordshire and Berkshire West STP",null,"QU9","Buckinghamshire, Oxfordshire and Berkshire West STP",null,"QJM","RWD","UNITED LINCOLNSHIRE HOSPITALS NHS TRUST",null,null,"RWD","UNITED LINCOLNSHIRE HOSPITALS NHS TRUST"]
[null,null,null,null,null,null,null,null,null,null,null,"QUA","The Black Country and West Birmingham STP",null,"QUA","The Black Country and West Birmingham STP",null,"QK1","RWE","UNIVERSITY HOSPITALS OF LEICESTER NHS TRUST",null,null,"RWE","UNIVERSITY HOSPITALS OF LEICESTER NHS TRUST"]
[null,null,null,null,null,null,null,null,null,null,null,"QUE","Cambridgeshire and Peterborough STP",null,"QUE","Cambridgeshire and Peterborough STP",null,"QKK","RJ1","GUY'S AND ST THOMAS' NHS FOUNDATION TRUST",null,null,"RJ1","GUY'S AND ST THOMAS' NHS FOUNDATION TRUST"]
[null,null,null,null,null,null,null,null,null,null,null,"QUY","Bristol, North Somerset and South Gloucestershire STP",null,"QUY","Bristol, North Somerset and South Gloucestershire STP",null,"QKK","RJZ","KING'S COLLEGE HOSPITAL NHS FOUNDATION TRUST",null,null,"RJZ","KING'S COLLEGE HOSPITAL NHS FOUNDATION TRUST"]
[null,null,null,null,null,null,null,null,null,null,null,"QVV","Dorset STP",null,"QVV","Dorset STP",null,"QKK","RJ2","LEWISHAM AND GREENWICH NHS TRUST",null,null,"RJ2","LEWISHAM AND GREENWICH NHS TRUST"]
[null,null,null,null,null,null,null,null,null,null,null,"QWE","South West London Health & Care Partnership (STP)",null,"QWE","South West London Health & Care Partnership (STP)",null,"QKS","RN7","DARTFORD AND GRAVESHAM NHS TRUST",null,null,"RN7","DARTFORD AND GRAVESHAM NHS TRUST"]
[null,null,null,null,null,null,null,null,null,null,null,"QWO","West Yorkshire and Harrogate Health & Care Partnership (STP)",null,"QWO","West Yorkshire and Harrogate Health & Care Partnership (STP)",null,"QKS","RVV","EAST KENT HOSPITALS UNIVERSITY NHS FOUNDATION TRUST",null,null,"RVV","EAST KENT HOSPITALS UNIVERSITY NHS FOUNDATION TRUST"]
[null,null,null,null,null,null,null,null,null,null,null,"QWU","Coventry and Warwickshire STP",null,"QWU","Coventry and Warwickshire STP",null,"QKS","RWF","MAIDSTONE AND TUNBRIDGE WELLS NHS TRUST",null,null,"RWF","MAIDSTONE AND TUNBRIDGE WELLS NHS TRUST"]
[null,null,null,null,null,null,null,null,null,null,null,"QXU","Surrey Heartlands Health & Care Partnership (STP)",null,"QXU","Surrey Heartlands Health & Care Partnership (STP)",null,"QKS","RPA","MEDWAY NHS FOUNDATION TRUST",null,null,"RPA","MEDWAY NHS FOUNDATION TRUST"]
[null,null,null,null,null,null,null,null,null,null,null,"QYG","Cheshire and Merseyside STP",null,"QYG","Cheshire and Merseyside STP",null,"QM7","RWH","EAST AND NORTH HERTFORDSHIRE NHS TRUST",null,null,"RWH","EAST AND NORTH HERTFORDSHIRE NHS TRUST"]
[null,null,null,null,null,null,null,null,null,null,null,"zIS1","Independent Sector Providers",null,"zIS1","Independent Sector Providers",null,"QM7","RQW","THE PRINCESS ALEXANDRA HOSPITAL NHS TRUST",null,null,"RQW","THE PRINCESS ALEXANDRA HOSPITAL NHS TRUST"]
[null,null,null,null,null,null,null,null,null,null,null,null,null,null,null,null,null,"QM7","RWG","WEST HERTFORDSHIRE TEACHING HOSPITALS NHS TRUST",null,null,"RWG","WEST HERTFORDSHIRE TEACHING HOSPITALS NHS TRUST"]
[null,null,null,null,null,null,null,null,null,null,null,null,null,null,null,null,null,"QMF","RF4","BARKING, HAVERING AND REDBRIDGE UNIVERSITY HOSPITALS NHS TRUST",null,null,"RF4","BARKING, HAVERING AND REDBRIDGE UNIVERSITY HOSPITALS NHS TRUST"]
[null,null,null,null,null,null,null,null,null,null,null,null,null,null,null,null,null,"QMF","R1H","BARTS HEALTH NHS TRUST",null,null,"R1H","BARTS HEALTH NHS TRUST"]
[null,null,null,null,null,null,null,null,null,null,null,null,null,null,null,null,null,"QMF","RQX","HOMERTON UNIVERSITY HOSPITAL NHS FOUNDATION TRUST",null,null,"RQX","HOMERTON UNIVERSITY HOSPITAL NHS FOUNDATION TRUST"]
[null,null,null,null,null,null,null,null,null,null,null,null,null,null,null,null,null,"QMJ","RP4","GREAT ORMOND STREET HOSPITAL FOR CHILDREN NHS FOUNDATION TRUST",null,null,"RP4","GREAT ORMOND STREET HOSPITAL FOR CHILDREN NHS FOUNDATION TRUST"]
[null,null,null,null,null,null,null,null,null,null,null,null,null,null,null,null,null,"QMJ","RP6","MOORFIELDS EYE HOSPITAL NHS FOUNDATION TRUST",null,null,"RP6","MOORFIELDS EYE HOSPITAL NHS FOUNDATION TRUST"]
[null,null,null,null,null,null,null,null,null,null,null,null,null,null,null,null,null,"QMJ","RAP","NORTH MIDDLESEX UNIVERSITY HOSPITAL NHS TRUST",null,null,"RAP","NORTH MIDDLESEX UNIVERSITY HOSPITAL NHS TRUST"]
[null,null,null,null,null,null,null,null,null,null,null,null,null,null,null,null,null,"QMJ","RAL","ROYAL FREE LONDON NHS FOUNDATION TRUST",null,null,"RAL","ROYAL FREE LONDON NHS FOUNDATION TRUST"]
[null,null,null,null,null,null,null,null,null,null,null,null,null,null,null,null,null,"QMJ","RRV","UNIVERSITY COLLEGE LONDON HOSPITALS NHS FOUNDATION TRUST",null,null,"RRV","UNIVERSITY COLLEGE LONDON HOSPITALS NHS FOUNDATION TRUST"]
[null,null,null,null,null,null,null,null,null,null,null,null,null,null,null,null,null,"QMJ","RKE","WHITTINGTON HEALTH NHS TRUST",null,null,"RKE","WHITTINGTON HEALTH NHS TRUST"]
[null,null,null,null,null,null,null,null,null,null,null,null,null,null,null,null,null,"QMM","RGP","JAMES PAGET UNIVERSITY HOSPITALS NHS FOUNDATION TRUST",null,null,"RGP","JAMES PAGET UNIVERSITY HOSPITALS NHS FOUNDATION TRUST"]
[null,null,null,null,null,null,null,null,null,null,null,null,null,null,null,null,null,"QMM","RM1","NORFOLK AND NORWICH UNIVERSITY HOSPITALS NHS FOUNDATION TRUST",null,null,"RM1","NORFOLK AND NORWICH UNIVERSITY HOSPITALS NHS FOUNDATION TRUST"]
[null,null,null,null,null,null,null,null,null,null,null,null,null,null,null,null,null,"QMM","RCX","THE QUEEN ELIZABETH HOSPITAL, KING'S LYNN, NHS FOUNDATION TRUST",null,null,"RCX","THE QUEEN ELIZABETH HOSPITAL, KING'S LYNN, NHS FOUNDATION TRUST"]
[null,null,null,null,null,null,null,null,null,null,null,null,null,null,null,null,null,"QNC","RRE","MIDLANDS PARTNERSHIP NHS FOUNDATION TRUST",null,null,"RRE","MIDLANDS PARTNERSHIP NHS FOUNDATION TRUST"]
[null,null,null,null,null,null,null,null,null,null,null,null,null,null,null,null,null,"QNC","RJE","UNIVERSITY HOSPITALS OF NORTH MIDLANDS NHS TRUST",null,null,"RJE","UNIVERSITY HOSPITALS OF NORTH MIDLANDS NHS TRUST"]
[null,null,null,null,null,null,null,null,null,null,null,null,null,null,null,null,null,"QNQ","RDU","FRIMLEY HEALTH NHS FOUNDATION TRUST",null,null,"RDU","FRIMLEY HEALTH NHS FOUNDATION TRUST"]
[null,null,null,null,null,null,null,null,null,null,null,null,null,null,null,null,null,"QNX","RXC","EAST SUSSEX HEALTHCARE NHS TRUST",null,null,"RXC","EAST SUSSEX HEALTHCARE NHS TRUST"]
[null,null,null,null,null,null,null,null,null,null,null,null,null,null,null,null,null,"QNX","RPC","QUEEN VICTORIA HOSPITAL NHS FOUNDATION TRUST",null,null,"RPC","QUEEN VICTORIA HOSPITAL NHS FOUNDATION TRUST"]
[null,null,null,null,null,null,null,null,null,null,null,null,null,null,null,null,null,"QNX","RYR","UNIVERSITY HOSPITALS SUSSEX NHS FOUNDATION TRUST",null,null,"RYR","UNIVERSITY HOSPITALS SUSSEX NHS FOUNDATION TRUST"]
[null,null,null,null,null,null,null,null,null,null,null,null,null,null,null,null,null,"QOC","RL1","THE ROBERT JONES AND AGNES HUNT ORTHOPAEDIC HOSPITAL NHS FOUNDATION TRUST",null,null,"RL1","THE ROBERT JONES AND AGNES HUNT ORTHOPAEDIC HOSPITAL NHS FOUNDATION TRUST"]
[null,null,null,null,null,null,null,null,null,null,null,null,null,null,null,null,null,"QOC","RXW","THE SHREWSBURY AND TELFORD HOSPITAL NHS TRUST",null,null,"RXW","THE SHREWSBURY AND TELFORD HOSPITAL NHS TRUST"]
[null,null,null,null,null,null,null,null,null,null,null,null,null,null,null,null,null,"QOP","RMC","BOLTON NHS FOUNDATION TRUST",null,null,"RMC","BOLTON NHS FOUNDATION TRUST"]
[null,null,null,null,null,null,null,null,null,null,null,null,null,null,null,null,null,"QOP","R0A","MANCHESTER UNIVERSITY NHS FOUNDATION TRUST",null,null,"R0A","MANCHESTER UNIVERSITY NHS FOUNDATION TRUST"]
[null,null,null,null,null,null,null,null,null,null,null,null,null,null,null,null,null,"QOP","RWJ","STOCKPORT NHS FOUNDATION TRUST",null,null,"RWJ","STOCKPORT NHS FOUNDATION TRUST"]
[null,null,null,null,null,null,null,null,null,null,null,null,null,null,null,null,null,"QOP","RMP","TAMESIDE AND GLOSSOP INTEGRATED CARE NHS FOUNDATION TRUST",null,null,"RMP","TAMESIDE AND GLOSSOP INTEGRATED CARE NHS FOUNDATION TRUST"]
[null,null,null,null,null,null,null,null,null,null,null,null,null,null,null,null,null,"QOP","RBV","THE CHRISTIE NHS FOUNDATION TRUST",null,null,"RBV","THE CHRISTIE NHS FOUNDATION TRUST"]
[null,null,null,null,null,null,null,null,null,null,null,null,null,null,null,null,null,"QOP","RRF","WRIGHTINGTON, WIGAN AND LEIGH NHS FOUNDATION TRUST",null,null,"RRF","WRIGHTINGTON, WIGAN AND LEIGH NHS FOUNDATION TRUST"]
[null,null,null,null,null,null,null,null,null,null,null,null,null,null,null,null,null,"QOQ","RCD","HARROGATE AND DISTRICT NHS FOUNDATION TRUST",null,null,"RCD","HARROGATE AND DISTRICT NHS FOUNDATION TRUST"]
[null,null,null,null,null,null,null,null,null,null,null,null,null,null,null,null,null,"QOQ","RWA","HULL UNIVERSITY TEACHING HOSPITALS NHS TRUST",null,null,"RWA","HULL UNIVERSITY TEACHING HOSPITALS NHS TRUST"]
[null,null,null,null,null,null,null,null,null,null,null,null,null,null,null,null,null,"QOQ","RJL","NORTHERN LINCOLNSHIRE AND GOOLE NHS FOUNDATION TRUST",null,null,"RJL","NORTHERN LINCOLNSHIRE AND GOOLE NHS FOUNDATION TRUST"]
[null,null,null,null,null,null,null,null,null,null,null,null,null,null,null,null,null,"QOQ","RCB","YORK AND SCARBOROUGH TEACHING HOSPITALS NHS FOUNDATION TRUST",null,null,"RCB","YORK AND SCARBOROUGH TEACHING HOSPITALS NHS FOUNDATION TRUST"]
[null,null,null,null,null,null,null,null,null,null,null,null,null,null,null,null,null,"QOX","RN3","GREAT WESTERN HOSPITALS NHS FOUNDATION TRUST",null,null,"RN3","GREAT WESTERN HOSPITALS NHS FOUNDATION TRUST"]
[null,null,null,null,null,null,null,null,null,null,null,null,null,null,null,null,null,"QOX","RD1","ROYAL UNITED HOSPITALS BATH NHS FOUNDATION TRUST",null,null,"RD1","ROYAL UNITED HOSPITALS BATH NHS FOUNDATION TRUST"]
[null,null,null,null,null,null,null,null,null,null,null,null,null,null,null,null,null,"QOX","RNZ","SALISBURY NHS FOUNDATION TRUST",null,null,"RNZ","SALISBURY NHS FOUNDATION TRUST"]
[null,null,null,null,null,null,null,null,null,null,null,null,null,null,null,null,null,"QPM","RNQ","KETTERING GENERAL HOSPITAL NHS FOUNDATION TRUST",null,null,"RNQ","KETTERING GENERAL HOSPITAL NHS FOUNDATION TRUST"]
[null,null,null,null,null,null,null,null,null,null,null,null,null,null,null,null,null,"QPM","RNS","NORTHAMPTON GENERAL HOSPITAL NHS TRUST",null,null,"RNS","NORTHAMPTON GENERAL HOSPITAL NHS TRUST"]
[null,null,null,null,null,null,null,null,null,null,null,null,null,null,null,null,null,"QR1","RTE","GLOUCESTERSHIRE HOSPITALS NHS FOUNDATION TRUST",null,null,"RTE","GLOUCESTERSHIRE HOSPITALS NHS FOUNDATION TRUST"]
[null,null,null,null,null,null,null,null,null,null,null,null,null,null,null,null,null,"QRL","RN5","HAMPSHIRE HOSPITALS NHS FOUNDATION TRUST",null,null,"RN5","HAMPSHIRE HOSPITALS NHS FOUNDATION TRUST"]
[null,null,null,null,null,null,null,null,null,null,null,null,null,null,null,null,null,"QRL","R1F","ISLE OF WIGHT NHS TRUST",null,null,"R1F","ISLE OF WIGHT NHS TRUST"]
[null,null,null,null,null,null,null,null,null,null,null,null,null,null,null,null,null,"QRL","RHU","PORTSMOUTH HOSPITALS UNIVERSITY NATIONAL HEALTH SERVICE TRUST",null,null,"RHU","PORTSMOUTH HOSPITALS UNIVERSITY NATIONAL HEALTH SERVICE TRUST"]
[null,null,null,null,null,null,null,null,null,null,null,null,null,null,null,null,null,"QRL","RHM","UNIVERSITY HOSPITAL SOUTHAMPTON NHS FOUNDATION TRUST",null,null,"RHM","UNIVERSITY HOSPITAL SOUTHAMPTON NHS FOUNDATION TRUST"]
[null,null,null,null,null,null,null,null,null,null,null,null,null,null,null,null,null,"QRV","RQM","CHELSEA AND WESTMINSTER HOSPITAL NHS FOUNDATION TRUST",null,null,"RQM","CHELSEA AND WESTMINSTER HOSPITAL NHS FOUNDATION TRUST"]
[null,null,null,null,null,null,null,null,null,null,null,null,null,null,null,null,null,"QRV","RYJ","IMPERIAL COLLEGE HEALTHCARE NHS TRUST",null,null,"RYJ","IMPERIAL COLLEGE HEALTHCARE NHS TRUST"]
[null,null,null,null,null,null,null,null,null,null,null,null,null,null,null,null,null,"QRV","R1K","LONDON NORTH WEST UNIVERSITY HEALTHCARE NHS TRUST",null,null,"R1K","LONDON NORTH WEST UNIVERSITY HEALTHCARE NHS TRUST"]
[null,null,null,null,null,null,null,null,null,null,null,null,null,null,null,null,null,"QRV","RAN","ROYAL NATIONAL ORTHOPAEDIC HOSPITAL NHS TRUST",null,null,"RAN","ROYAL NATIONAL ORTHOPAEDIC HOSPITAL NHS TRUST"]
[null,null,null,null,null,null,null,null,null,null,null,null,null,null,null,null,null,"QRV","RAS","THE HILLINGDON HOSPITALS NHS FOUNDATION TRUST",null,null,"RAS","THE HILLINGDON HOSPITALS NHS FOUNDATION TRUST"]
[null,null,null,null,null,null,null,null,null,null,null,null,null,null,null,null,null,"QRV","RPY","THE ROYAL MARSDEN NHS FOUNDATION TRUST",null,null,"RPY","THE ROYAL MARSDEN NHS FOUNDATION TRUST"]
[null,null,null,null,null,null,null,null,null,null,null,null,null,null,null,null,null,"QSL","RH5","SOMERSET NHS FOUNDATION TRUST",null,null,"RH5","SOMERSET NHS FOUNDATION TRUST"]
[null,null,null,null,null,null,null,null,null,null,null,null,null,null,null,null,null,"QSL","RA4","YEOVIL DISTRICT HOSPITAL NHS FOUNDATION TRUST",null,null,"RA4","YEOVIL DISTRICT HOSPITAL NHS FOUNDATION TRUST"]
[null,null,null,null,null,null,null,null,null,null,null,null,null,null,null,null,null,"QT1","RX1","NOTTINGHAM UNIVERSITY HOSPITALS NHS TRUST",null,null,"RX1","NOTTINGHAM UNIVERSITY HOSPITALS NHS TRUST"]
[null,null,null,null,null,null,null,null,null,null,null,null,null,null,null,null,null,"QT1","RK5","SHERWOOD FOREST HOSPITALS NHS FOUNDATION TRUST",null,null,"RK5","SHERWOOD FOREST HOSPITALS NHS FOUNDATION TRUST"]
[null,null,null,null,null,null,null,null,null,null,null,null,null,null,null,null,null,"QT6","REF","ROYAL CORNWALL HOSPITALS NHS TRUST",null,null,"REF","ROYAL CORNWALL HOSPITALS NHS TRUST"]
[null,null,null,null,null,null,null,null,null,null,null,null,null,null,null,null,null,"QU9","RXQ","BUCKINGHAMSHIRE HEALTHCARE NHS TRUST",null,null,"RXQ","BUCKINGHAMSHIRE HEALTHCARE NHS TRUST"]
[null,null,null,null,null,null,null,null,null,null,null,null,null,null,null,null,null,"QU9","RTH","OXFORD UNIVERSITY HOSPITALS NHS FOUNDATION TRUST",null,null,"RTH","OXFORD UNIVERSITY HOSPITALS NHS FOUNDATION TRUST"]
[null,null,null,null,null,null,null,null,null,null,null,null,null,null,null,null,null,"QU9","RHW","ROYAL BERKSHIRE NHS FOUNDATION TRUST",null,null,"RHW","ROYAL BERKSHIRE NHS FOUNDATION TRUST"]
[null,null,null,null,null,null,null,null,null,null,null,null,null,null,null,null,null,"QUA","RXK","SANDWELL AND WEST BIRMINGHAM HOSPITALS NHS TRUST",null,null,"RXK","SANDWELL AND WEST BIRMINGHAM HOSPITALS NHS TRUST"]
[null,null,null,null,null,null,null,null,null,null,null,null,null,null,null,null,null,"QUA","RNA","THE DUDLEY GROUP NHS FOUNDATION TRUST",null,null,"RNA","THE DUDLEY GROUP NHS FOUNDATION TRUST"]
[null,null,null,null,null,null,null,null,null,null,null,null,null,null,null,null,null,"QUA","RL4","THE ROYAL WOLVERHAMPTON NHS TRUST",null,null,"RL4","THE ROYAL WOLVERHAMPTON NHS TRUST"]
[null,null,null,null,null,null,null,null,null,null,null,null,null,null,null,null,null,"QUA","RBK","WALSALL HEALTHCARE NHS TRUST",null,null,"RBK","WALSALL HEALTHCARE NHS TRUST"]
[null,null,null,null,null,null,null,null,null,null,null,null,null,null,null,null,null,"QUE","RGT","CAMBRIDGE UNIVERSITY HOSPITALS NHS FOUNDATION TRUST",null,null,"RGT","CAMBRIDGE UNIVERSITY HOSPITALS NHS FOUNDATION TRUST"]
[null,null,null,null,null,null,null,null,null,null,null,null,null,null,null,null,null,"QUE","RGN","NORTH WEST ANGLIA NHS FOUNDATION TRUST",null,null,"RGN","NORTH WEST ANGLIA NHS FOUNDATION TRUST"]
[null,null,null,null,null,null,null,null,null,null,null,null,null,null,null,null,null,"QUY","RVJ","NORTH BRISTOL NHS TRUST",null,null,"RVJ","NORTH BRISTOL NHS TRUST"]
[null,null,null,null,null,null,null,null,null,null,null,null,null,null,null,null,null,"QUY","RA7","UNIVERSITY HOSPITALS BRISTOL AND WESTON NHS FOUNDATION TRUST",null,null,"RA7","UNIVERSITY HOSPITALS BRISTOL AND WESTON NHS FOUNDATION TRUST"]
[null,null,null,null,null,null,null,null,null,null,null,null,null,null,null,null,null,"QVV","RBD","DORSET COUNTY HOSPITAL NHS FOUNDATION TRUST",null,null,"RBD","DORSET COUNTY HOSPITAL NHS FOUNDATION TRUST"]
[null,null,null,null,null,null,null,null,null,null,null,null,null,null,null,null,null,"QVV","R0D","UNIVERSITY HOSPITALS DORSET NHS FOUNDATION TRUST",null,null,"R0D","UNIVERSITY HOSPITALS DORSET NHS FOUNDATION TRUST"]
[null,null,null,null,null,null,null,null,null,null,null,null,null,null,null,null,null,"QWE","RJ6","CROYDON HEALTH SERVICES NHS TRUST",null,null,"RJ6","CROYDON HEALTH SERVICES NHS TRUST"]
[null,null,null,null,null,null,null,null,null,null,null,null,null,null,null,null,null,"QWE","RVR","EPSOM AND ST HELIER UNIVERSITY HOSPITALS NHS TRUST",null,null,"RVR","EPSOM AND ST HELIER UNIVERSITY HOSPITALS NHS TRUST"]
[null,null,null,null,null,null,null,null,null,null,null,null,null,null,null,null,null,"QWE","RAX","KINGSTON HOSPITAL NHS FOUNDATION TRUST",null,null,"RAX","KINGSTON HOSPITAL NHS FOUNDATION TRUST"]
[null,null,null,null,null,null,null,null,null,null,null,null,null,null,null,null,null,"QWE","RJ7","ST GEORGE'S UNIVERSITY HOSPITALS NHS FOUNDATION TRUST",null,null,"RJ7","ST GEORGE'S UNIVERSITY HOSPITALS NHS FOUNDATION TRUST"]
[null,null,null,null,null,null,null,null,null,null,null,null,null,null,null,null,null,"QWO","RCF","AIREDALE NHS FOUNDATION TRUST",null,null,"RCF","AIREDALE NHS FOUNDATION TRUST"]
[null,null,null,null,null,null,null,null,null,null,null,null,null,null,null,null,null,"QWO","RAE","BRADFORD TEACHING HOSPITALS NHS FOUNDATION TRUST",null,null,"RAE","BRADFORD TEACHING HOSPITALS NHS FOUNDATION TRUST"]
[null,null,null,null,null,null,null,null,null,null,null,null,null,null,null,null,null,"QWO","RWY","CALDERDALE AND HUDDERSFIELD NHS FOUNDATION TRUST",null,null,"RWY","CALDERDALE AND HUDDERSFIELD NHS FOUNDATION TRUST"]
[null,null,null,null,null,null,null,null,null,null,null,null,null,null,null,null,null,"QWO","RR8","LEEDS TEACHING HOSPITALS NHS TRUST",null,null,"RR8","LEEDS TEACHING HOSPITALS NHS TRUST"]
[null,null,null,null,null,null,null,null,null,null,null,null,null,null,null,null,null,"QWO","RXF","MID YORKSHIRE HOSPITALS NHS TRUST",null,null,"RXF","MID YORKSHIRE HOSPITALS NHS TRUST"]
[null,null,null,null,null,null,null,null,null,null,null,null,null,null,null,null,null,"QWU","RLT","GEORGE ELIOT HOSPITAL NHS TRUST",null,null,"RLT","GEORGE ELIOT HOSPITAL NHS TRUST"]
[null,null,null,null,null,null,null,null,null,null,null,null,null,null,null,null,null,"QWU","RJC","SOUTH WARWICKSHIRE NHS FOUNDATION TRUST",null,null,"RJC","SOUTH WARWICKSHIRE NHS FOUNDATION TRUST"]
[null,null,null,null,null,null,null,null,null,null,null,null,null,null,null,null,null,"QWU","RKB","UNIVERSITY HOSPITALS COVENTRY AND WARWICKSHIRE NHS TRUST",null,null,"RKB","UNIVERSITY HOSPITALS COVENTRY AND WARWICKSHIRE NHS TRUST"]
[null,null,null,null,null,null,null,null,null,null,null,null,null,null,null,null,null,"QXU","RTK","ASHFORD AND ST PETER'S HOSPITALS NHS FOUNDATION TRUST",null,null,"RTK","ASHFORD AND ST PETER'S HOSPITALS NHS FOUNDATION TRUST"]
[null,null,null,null,null,null,null,null,null,null,null,null,null,null,null,null,null,"QXU","RA2","ROYAL SURREY COUNTY HOSPITAL NHS FOUNDATION TRUST",null,null,"RA2","ROYAL SURREY COUNTY HOSPITAL NHS FOUNDATION TRUST"]
[null,null,null,null,null,null,null,null,null,null,null,null,null,null,null,null,null,"QXU","RTP","SURREY AND SUSSEX HEALTHCARE NHS TRUST",null,null,"RTP","SURREY AND SUSSEX HEALTHCARE NHS TRUST"]
[null,null,null,null,null,null,null,null,null,null,null,null,null,null,null,null,null,"QYG","RBS","ALDER HEY CHILDREN'S NHS FOUNDATION TRUST",null,null,"RBS","ALDER HEY CHILDREN'S NHS FOUNDATION TRUST"]
[null,null,null,null,null,null,null,null,null,null,null,null,null,null,null,null,null,"QYG","RJN","EAST CHESHIRE NHS TRUST",null,null,"RJN","EAST CHESHIRE NHS TRUST"]
[null,null,null,null,null,null,null,null,null,null,null,null,null,null,null,null,null,"QYG","RBQ","LIVERPOOL HEART AND CHEST HOSPITAL NHS FOUNDATION TRUST",null,null,"RBQ","LIVERPOOL HEART AND CHEST HOSPITAL NHS FOUNDATION TRUST"]
[null,null,null,null,null,null,null,null,null,null,null,null,null,null,null,null,null,"QYG","REM","LIVERPOOL UNIVERSITY HOSPITALS NHS FOUNDATION TRUST",null,null,"REM","LIVERPOOL UNIVERSITY HOSPITALS NHS FOUNDATION TRUST"]
[null,null,null,null,null,null,null,null,null,null,null,null,null,null,null,null,null,"QYG","REP","LIVERPOOL WOMEN'S NHS FOUNDATION TRUST",null,null,"REP","LIVERPOOL WOMEN'S NHS FOUNDATION TRUST"]
[null,null,null,null,null,null,null,null,null,null,null,null,null,null,null,null,null,"QYG","RBT","MID CHESHIRE HOSPITALS NHS FOUNDATION TRUST",null,null,"RBT","MID CHESHIRE HOSPITALS NHS FOUNDATION TRUST"]
[null,null,null,null,null,null,null,null,null,null,null,null,null,null,null,null,null,"QYG","RVY","SOUTHPORT AND ORMSKIRK HOSPITAL NHS TRUST",null,null,"RVY","SOUTHPORT AND ORMSKIRK HOSPITAL NHS TRUST"]
[null,null,null,null,null,null,null,null,null,null,null,null,null,null,null,null,null,"QYG","RBN","ST HELENS AND KNOWSLEY TEACHING HOSPITALS NHS TRUST",null,null,"RBN","ST HELENS AND KNOWSLEY TEACHING HOSPITALS NHS TRUST"]
[null,null,null,null,null,null,null,null,null,null,null,null,null,null,null,null,null,"QYG","REN","THE CLATTERBRIDGE CANCER CENTRE NHS FOUNDATION TRUST",null,null,"REN","THE CLATTERBRIDGE CANCER CENTRE NHS FOUNDATION TRUST"]
[null,null,null,null,null,null,null,null,null,null,null,null,null,null,null,null,null,"QYG","RET","THE WALTON CENTRE NHS FOUNDATION TRUST",null,null,"RET","THE WALTON CENTRE NHS FOUNDATION TRUST"]
[null,null,null,null,null,null,null,null,null,null,null,null,null,null,null,null,null,"QYG","RWW","WARRINGTON AND HALTON TEACHING HOSPITALS NHS FOUNDATION TRUST",null,null,"RWW","WARRINGTON AND HALTON TEACHING HOSPITALS NHS FOUNDATION TRUST"]
[null,null,null,null,null,null,null,null,null,null,null,null,null,null,null,null,null,"QYG","RBL","WIRRAL UNIVERSITY TEACHING HOSPITAL NHS FOUNDATION TRUST",null,null,"RBL","WIRRAL UNIVERSITY TEACHING HOSPITAL NHS FOUNDATION TRUST"]
[null,null,null,null,null,null,null,null,null,null,null,null,null,null,null,null,null,"IS1","NT401","ALEXANDRA HOSPITAL",null,null,"NT401","ALEXANDRA HOSPITAL"]
[null,null,null,null,null,null,null,null,null,null,null,null,null,null,null,null,null,"IS1","NYW17","ASPEN HEALTHCARE - MIDLAND EYE",null,null,"NYW17","ASPEN HEALTHCARE - MIDLAND EYE"]
[null,null,null,null,null,null,null,null,null,null,null,null,null,null,null,null,null,"IS1","NT402","BATH CLINIC",null,null,"NT402","BATH CLINIC"]
[null,null,null,null,null,null,null,null,null,null,null,null,null,null,null,null,null,"IS1","NT403","BEARDWOOD HOSPITAL",null,null,"NT403","BEARDWOOD HOSPITAL"]
[null,null,null,null,null,null,null,null,null,null,null,null,null,null,null,null,null,"IS1","NT404","BEAUMONT HOSPITAL",null,null,"NT404","BEAUMONT HOSPITAL"]
[null,null,null,null,null,null,null,null,null,null,null,null,null,null,null,null,null,"IS1","NWF01","BENENDEN HOSPITAL",null,null,"NWF01","BENENDEN HOSPITAL"]
[null,null,null,null,null,null,null,null,null,null,null,null,null,null,null,null,null,"IS1","NT405","BISHOPS WOOD",null,null,"NT405","BISHOPS WOOD"]
[null,null,null,null,null,null,null,null,null,null,null,null,null,null,null,null,null,"IS1","NT406","BLACKHEATH HOSPITAL",null,null,"NT406","BLACKHEATH HOSPITAL"]
[null,null,null,null,null,null,null,null,null,null,null,null,null,null,null,null,null,"IS1","NT451","CAVELL HOSPITAL",null,null,"NT451","CAVELL HOSPITAL"]
[null,null,null,null,null,null,null,null,null,null,null,null,null,null,null,null,null,"IS1","NT408","CHAUCER HOSPITAL",null,null,"NT408","CHAUCER HOSPITAL"]
[null,null,null,null,null,null,null,null,null,null,null,null,null,null,null,null,null,"IS1","NT409","CHELSFIELD PARK HOSPITAL",null,null,"NT409","CHELSFIELD PARK HOSPITAL"]
[null,null,null,null,null,null,null,null,null,null,null,null,null,null,null,null,null,"IS1","NT410","CHILTERN HOSPITAL",null,null,"NT410","CHILTERN HOSPITAL"]
[null,null,null,null,null,null,null,null,null,null,null,null,null,null,null,null,null,"IS1","NT411","CLEMENTINE CHURCHILL HOSPITAL",null,null,"NT411","CLEMENTINE CHURCHILL HOSPITAL"]
[null,null,null,null,null,null,null,null,null,null,null,null,null,null,null,null,null,"IS1","NNE","DORKING HEALTHCARE LIMITED (DHC)",null,null,"NNE","DORKING HEALTHCARE LIMITED (DHC)"]
[null,null,null,null,null,null,null,null,null,null,null,null,null,null,null,null,null,"IS1","NT412","DROITWICH SPA HOSPITAL",null,null,"NT412","DROITWICH SPA HOSPITAL"]
[null,null,null,null,null,null,null,null,null,null,null,null,null,null,null,null,null,"IS1","NT447","DUCHY HOSPITAL",null,null,"NT447","DUCHY HOSPITAL"]
[null,null,null,null,null,null,null,null,null,null,null,null,null,null,null,null,null,"IS1","NT445","EDGBASTON HOSPITAL",null,null,"NT445","EDGBASTON HOSPITAL"]
[null,null,null,null,null,null,null,null,null,null,null,null,null,null,null,null,null,"IS1","ACM","EYE CARE MEDICAL LTD",null,null,"ACM","EYE CARE MEDICAL LTD"]
[null,null,null,null,null,null,null,null,null,null,null,null,null,null,null,null,null,"IS1","NVG01","FAIRFIELD HOSPITAL",null,null,"NVG01","FAIRFIELD HOSPITAL"]
[null,null,null,null,null,null,null,null,null,null,null,null,null,null,null,null,null,"IS1","NT417","GORING HALL HOSPITAL",null,null,"NT417","GORING HALL HOSPITAL"]
[null,null,null,null,null,null,null,null,null,null,null,null,null,null,null,null,null,"IS1","NT418","HAMPSHIRE CLINIC",null,null,"NT418","HAMPSHIRE CLINIC"]
[null,null,null,null,null,null,null,null,null,null,null,null,null,null,null,null,null,"IS1","NT419","HARBOUR HOSPITAL",null,null,"NT419","HARBOUR HOSPITAL"]
[null,null,null,null,null,null,null,null,null,null,null,null,null,null,null,null,null,"IS1","NQT","HCRG CARE LTD",null,null,"NQT","HCRG CARE LTD"]
[null,null,null,null,null,null,null,null,null,null,null,null,null,null,null,null,null,"IS1","NDA","HCRG CARE SERVICES LTD",null,null,"NDA","HCRG CARE SERVICES LTD"]
[null,null,null,null,null,null,null,null,null,null,null,null,null,null,null,null,null,"IS1","NT416","HENDON HOSPITAL",null,null,"NT416","HENDON HOSPITAL"]
[null,null,null,null,null,null,null,null,null,null,null,null,null,null,null,null,null,"IS1","NT420","HIGHFIELD HOSPITAL",null,null,"NT420","HIGHFIELD HOSPITAL"]
[null,null,null,null,null,null,null,null,null,null,null,null,null,null,null,null,null,"IS1","NXM","HORDER HEALTHCARE",null,null,"NXM","HORDER HEALTHCARE"]
[null,null,null,null,null,null,null,null,null,null,null,null,null,null,null,null,null,"IS1","NT448","HUDDERSFIELD HOSPITAL",null,null,"NT448","HUDDERSFIELD HOSPITAL"]
[null,null,null,null,null,null,null,null,null,null,null,null,null,null,null,null,null,"IS1","NV1","INHEALTH LIMITED",null,null,"NV1","INHEALTH LIMITED"]
[null,null,null,null,null,null,null,null,null,null,null,null,null,null,null,null,null,"IS1","NCR","ISIGHT",null,null,"NCR","ISIGHT"]
[null,null,null,null,null,null,null,null,null,null,null,null,null,null,null,null,null,"IS1","ADP","KIMS HOSPITAL",null,null,"ADP","KIMS HOSPITAL"]
[null,null,null,null,null,null,null,null,null,null,null,null,null,null,null,null,null,"IS1","NT421","KINGS OAK HOSPITAL",null,null,"NT421","KINGS OAK HOSPITAL"]
[null,null,null,null,null,null,null,null,null,null,null,null,null,null,null,null,null,"IS1","NT449","LANCASTER HOSPITAL",null,null,"NT449","LANCASTER HOSPITAL"]
[null,null,null,null,null,null,null,null,null,null,null,null,null,null,null,null,null,"IS1","NT450","LINCOLN HOSPITAL",null,null,"NT450","LINCOLN HOSPITAL"]
[null,null,null,null,null,null,null,null,null,null,null,null,null,null,null,null,null,"IS1","NT422","LONDON INDEPENDENT HOSPITAL",null,null,"NT422","LONDON INDEPENDENT HOSPITAL"]
[null,null,null,null,null,null,null,null,null,null,null,null,null,null,null,null,null,"IS1","NT423","MANOR HOSPITAL",null,null,"NT423","MANOR HOSPITAL"]
[null,null,null,null,null,null,null,null,null,null,null,null,null,null,null,null,null,"IS1","NT424","MERIDEN HOSPITAL",null,null,"NT424","MERIDEN HOSPITAL"]
[null,null,null,null,null,null,null,null,null,null,null,null,null,null,null,null,null,"IS1","NT455","MOUNT ALVERNIA HOSPITAL",null,null,"NT455","MOUNT ALVERNIA HOSPITAL"]
[null,null,null,null,null,null,null,null,null,null,null,null,null,null,null,null,null,"IS1","ACG20","NEWMEDICA - BRISTOL - LITFIELD HOUSE",null,null,"ACG20","NEWMEDICA - BRISTOL - LITFIELD HOUSE"]
[null,null,null,null,null,null,null,null,null,null,null,null,null,null,null,null,null,"IS1","Q1S8W","NEWMEDICA - BURY ST EDMUNDS",null,null,"Q1S8W","NEWMEDICA - BURY ST EDMUNDS"]
[null,null,null,null,null,null,null,null,null,null,null,null,null,null,null,null,null,"IS1","ACG36","NEWMEDICA - EXETER - GLEN HOUSE",null,null,"ACG36","NEWMEDICA - EXETER - GLEN HOUSE"]
[null,null,null,null,null,null,null,null,null,null,null,null,null,null,null,null,null,"IS1","ACG41","NEWMEDICA - FROME",null,null,"ACG41","NEWMEDICA - FROME"]
[null,null,null,null,null,null,null,null,null,null,null,null,null,null,null,null,null,"IS1","ACG13","NEWMEDICA - GLOUCESTER (ASPEN MEDICAL CENTRE)",null,null,"ACG13","NEWMEDICA - GLOUCESTER (ASPEN MEDICAL CENTRE)"]
[null,null,null,null,null,null,null,null,null,null,null,null,null,null,null,null,null,"IS1","L0D9W","NEWMEDICA - GLOUCESTER (BRIGHOUSE COURT)",null,null,"L0D9W","NEWMEDICA - GLOUCESTER (BRIGHOUSE COURT)"]
[null,null,null,null,null,null,null,null,null,null,null,null,null,null,null,null,null,"IS1","ACG37","NEWMEDICA - IPSWICH",null,null,"ACG37","NEWMEDICA - IPSWICH"]
[null,null,null,null,null,null,null,null,null,null,null,null,null,null,null,null,null,"IS1","ACG38","NEWMEDICA - LANGFORD",null,null,"ACG38","NEWMEDICA - LANGFORD"]
[null,null,null,null,null,null,null,null,null,null,null,null,null,null,null,null,null,"IS1","N6Z0R","NEWMEDICA - LINCOLN",null,null,"N6Z0R","NEWMEDICA - LINCOLN"]
[null,null,null,null,null,null,null,null,null,null,null,null,null,null,null,null,null,"IS1","B5M7B","NEWMEDICA - NORWICH",null,null,"B5M7B","NEWMEDICA - NORWICH"]
[null,null,null,null,null,null,null,null,null,null,null,null,null,null,null,null,null,"IS1","P5Y6K","NEWMEDICA - SHREWSBURY",null,null,"P5Y6K","NEWMEDICA - SHREWSBURY"]
[null,null,null,null,null,null,null,null,null,null,null,null,null,null,null,null,null,"IS1","ACG39","NEWMEDICA - SWINDON",null,null,"ACG39","NEWMEDICA - SWINDON"]
[null,null,null,null,null,null,null,null,null,null,null,null,null,null,null,null,null,"IS1","ACG24","NEWMEDICA - TEESSIDE - NORTH ORMESBY",null,null,"ACG24","NEWMEDICA - TEESSIDE - NORTH ORMESBY"]
[null,null,null,null,null,null,null,null,null,null,null,null,null,null,null,null,null,"IS1","ACG40","NEWMEDICA - WAKEFIELD",null,null,"ACG40","NEWMEDICA - WAKEFIELD"]
[null,null,null,null,null,null,null,null,null,null,null,null,null,null,null,null,null,"IS1","ACG30","NEWMEDICA - WORKSOP - DUKERIES",null,null,"ACG30","NEWMEDICA - WORKSOP - DUKERIES"]
[null,null,null,null,null,null,null,null,null,null,null,null,null,null,null,null,null,"IS1","ACG19","NEWMEDICA COMMUNITY OPHTHALMOLOGY - LEEDS",null,null,"ACG19","NEWMEDICA COMMUNITY OPHTHALMOLOGY - LEEDS"]
[null,null,null,null,null,null,null,null,null,null,null,null,null,null,null,null,null,"IS1","ACG07","NEWMEDICA COMMUNITY OPHTHALMOLOGY - LEICESTERSHIRE - LEICESTER (STONEYGATE EYE HOSPITAL)",null,null,"ACG07","NEWMEDICA COMMUNITY OPHTHALMOLOGY - LEICESTERSHIRE - LEICESTER (STONEYGATE EYE HOSPITAL)"]
[null,null,null,null,null,null,null,null,null,null,null,null,null,null,null,null,null,"IS1","ACG09","NEWMEDICA COMMUNITY OPHTHALMOLOGY - NORTH DERBYSHIRE - BARLBOROUGH TREATMENT CENTRE",null,null,"ACG09","NEWMEDICA COMMUNITY OPHTHALMOLOGY - NORTH DERBYSHIRE - BARLBOROUGH TREATMENT CENTRE"]
[null,null,null,null,null,null,null,null,null,null,null,null,null,null,null,null,null,"IS1","ACG12","NEWMEDICA COMMUNITY OPHTHALMOLOGY - NORTH EAST LINCOLNSHIRE - GRIMSBY",null,null,"ACG12","NEWMEDICA COMMUNITY OPHTHALMOLOGY - NORTH EAST LINCOLNSHIRE - GRIMSBY"]
[null,null,null,null,null,null,null,null,null,null,null,null,null,null,null,null,null,"IS1","ACG08","NEWMEDICA OPHTHALMOLOGY - NUNEATON - CAMP HILL - GP LED HEALTH CENTRE",null,null,"ACG08","NEWMEDICA OPHTHALMOLOGY - NUNEATON - CAMP HILL - GP LED HEALTH CENTRE"]
[null,null,null,null,null,null,null,null,null,null,null,null,null,null,null,null,null,"IS1","Y05019","OLDHAM TOTAL SKIN SERVICE",null,null,"Y05019","OLDHAM TOTAL SKIN SERVICE"]
[null,null,null,null,null,null,null,null,null,null,null,null,null,null,null,null,null,"IS1","NT427","PARK HOSPITAL",null,null,"NT427","PARK HOSPITAL"]
[null,null,null,null,null,null,null,null,null,null,null,null,null,null,null,null,null,"IS1","NMN","PENINSULA HEALTH LLP",null,null,"NMN","PENINSULA HEALTH LLP"]
[null,null,null,null,null,null,null,null,null,null,null,null,null,null,null,null,null,"IS1","NEQ","PHOENIX HEALTH SOLUTIONS LIMITED HQ",null,null,"NEQ","PHOENIX HEALTH SOLUTIONS LIMITED HQ"]
[null,null,null,null,null,null,null,null,null,null,null,null,null,null,null,null,null,"IS1","NEY","PIONEER HEALTHCARE LIMITED",null,null,"NEY","PIONEER HEALTHCARE LIMITED"]
[null,null,null,null,null,null,null,null,null,null,null,null,null,null,null,null,null,"IS1","NTP13","PRACTICE PLUS GROUP HOSPITAL - BARLBOROUGH",null,null,"NTP13","PRACTICE PLUS GROUP HOSPITAL - BARLBOROUGH"]
[null,null,null,null,null,null,null,null,null,null,null,null,null,null,null,null,null,"IS1","NTPH2","PRACTICE PLUS GROUP HOSPITAL - EMERSONS GREEN",null,null,"NTPH2","PRACTICE PLUS GROUP HOSPITAL - EMERSONS GREEN"]
[null,null,null,null,null,null,null,null,null,null,null,null,null,null,null,null,null,"IS1","NTP15","PRACTICE PLUS GROUP HOSPITAL - ILFORD",null,null,"NTP15","PRACTICE PLUS GROUP HOSPITAL - ILFORD"]
[null,null,null,null,null,null,null,null,null,null,null,null,null,null,null,null,null,"IS1","NTPH5","PRACTICE PLUS GROUP HOSPITAL - PLYMOUTH",null,null,"NTPH5","PRACTICE PLUS GROUP HOSPITAL - PLYMOUTH"]
[null,null,null,null,null,null,null,null,null,null,null,null,null,null,null,null,null,"IS1","NTPH1","PRACTICE PLUS GROUP HOSPITAL - SHEPTON MALLET",null,null,"NTPH1","PRACTICE PLUS GROUP HOSPITAL - SHEPTON MALLET"]
[null,null,null,null,null,null,null,null,null,null,null,null,null,null,null,null,null,"IS1","NTP11","PRACTICE PLUS GROUP HOSPITAL - SOUTHAMPTON",null,null,"NTP11","PRACTICE PLUS GROUP HOSPITAL - SOUTHAMPTON"]
[null,null,null,null,null,null,null,null,null,null,null,null,null,null,null,null,null,"IS1","NTPAE","PRACTICE PLUS GROUP OPHTHALMOLOGY - NORTH WEST",null,null,"NTPAE","PRACTICE PLUS GROUP OPHTHALMOLOGY - NORTH WEST"]
[null,null,null,null,null,null,null,null,null,null,null,null,null,null,null,null,null,"IS1","NTPAD","PRACTICE PLUS GROUP SURGICAL CENTRE - ST MARYS PORTSMOUTH",null,null,"NTPAD","PRACTICE PLUS GROUP SURGICAL CENTRE - ST MARYS PORTSMOUTH"]
[null,null,null,null,null,null,null,null,null,null,null,null,null,null,null,null,null,"IS1","NT428","PRINCESS MARGARET HOSPITAL",null,null,"NT428","PRINCESS MARGARET HOSPITAL"]
[null,null,null,null,null,null,null,null,null,null,null,null,null,null,null,null,null,"IS1","NT429","PRIORY HOSPITAL",null,null,"NT429","PRIORY HOSPITAL"]
[null,null,null,null,null,null,null,null,null,null,null,null,null,null,null,null,null,"IS1","NAM","PROBUS SURGERY LIMITED",null,null,"NAM","PROBUS SURGERY LIMITED"]
[null,null,null,null,null,null,null,null,null,null,null,null,null,null,null,null,null,"IS1","NVC","RAMSAY HEALTHCARE UK OPERATIONS LIMITED",null,null,"NVC","RAMSAY HEALTHCARE UK OPERATIONS LIMITED"]
[null,null,null,null,null,null,null,null,null,null,null,null,null,null,null,null,null,"IS1","NT430","RIDGEWAY HOSPITAL",null,null,"NT430","RIDGEWAY HOSPITAL"]
[null,null,null,null,null,null,null,null,null,null,null,null,null,null,null,null,null,"IS1","NT431","RUNNYMEDE HOSPITAL",null,null,"NT431","RUNNYMEDE HOSPITAL"]
[null,null,null,null,null,null,null,null,null,null,null,null,null,null,null,null,null,"IS1","NT433","SARUM ROAD HOSPITAL",null,null,"NT433","SARUM ROAD HOSPITAL"]
[null,null,null,null,null,null,null,null,null,null,null,null,null,null,null,null,null,"IS1","NT434","SAXON CLINIC",null,null,"NT434","SAXON CLINIC"]
[null,null,null,null,null,null,null,null,null,null,null,null,null,null,null,null,null,"IS1","NT435","SHELBURNE HOSPITAL",null,null,"NT435","SHELBURNE HOSPITAL"]
[null,null,null,null,null,null,null,null,null,null,null,null,null,null,null,null,null,"IS1","NT436","SHIRLEY OAKS HOSPITAL",null,null,"NT436","SHIRLEY OAKS HOSPITAL"]
[null,null,null,null,null,null,null,null,null,null,null,null,null,null,null,null,null,"IS1","NT437","SLOANE HOSPITAL",null,null,"NT437","SLOANE HOSPITAL"]
[null,null,null,null,null,null,null,null,null,null,null,null,null,null,null,null,null,"IS1","NT490","SOUTHEND PRIVATE HOSPITAL",null,null,"NT490","SOUTHEND PRIVATE HOSPITAL"]
[null,null,null,null,null,null,null,null,null,null,null,null,null,null,null,null,null,"IS1","NT3","SPIRE HEALTHCARE",null,null,"NT3","SPIRE HEALTHCARE"]
[null,null,null,null,null,null,null,null,null,null,null,null,null,null,null,null,null,"IS1","NT446","ST EDMUNDS HOSPITAL",null,null,"NT446","ST EDMUNDS HOSPITAL"]
[null,null,null,null,null,null,null,null,null,null,null,null,null,null,null,null,null,"IS1","G3Z1Q","SULIS HOSPITAL BATH (FOXCOTE AVENUE)",null,null,"G3Z1Q","SULIS HOSPITAL BATH (FOXCOTE AVENUE)"]
[null,null,null,null,null,null,null,null,null,null,null,null,null,null,null,null,null,"IS1","AAH","TETBURY HOSPITAL TRUST LTD",null,null,"AAH","TETBURY HOSPITAL TRUST LTD"]
[null,null,null,null,null,null,null,null,null,null,null,null,null,null,null,null,null,"IS1","NT440","THORNBURY HOSPITAL",null,null,"NT440","THORNBURY HOSPITAL"]
[null,null,null,null,null,null,null,null,null,null,null,null,null,null,null,null,null,"IS1","NT441","THREE SHIRES HOSPITAL",null,null,"NT441","THREE SHIRES HOSPITAL"]
[null,null,null,null,null,null,null,null,null,null,null,null,null,null,null,null,null,"IS1","NT443","WINTERBOURNE HOSPITAL",null,null,"NT443","WINTERBOURNE HOSPITAL"]
[null,null,null,null,null,null,null,null,null,null,null,null,null,null,null,null,null,"IS1","NT457","WOODLANDS HOSPITAL",null,null,"NT457","WOODLANDS HOSPITAL"]